{"text_format":"1","workbook":"xlsx","n_sheets":3,"sheets":["report","input","calc"],"not_rendered":{"charts":0,"images":0,"macros":1,"external_links":0,"defined_names":5,"comments":1,"pivot_tables":0},"unopened":[],"bounds":{"document_bytes":16777216,"sheet_cells":100000,"rows_first":2000,"rows_last":500,"rows_between":2000,"halvings":0,"cell_chars":16384,"cell_head_chars":4096},"cells_cut":0,"cells_raw":0,"read":"whole","date_system":"1900"}

{"sheet":"report","index":0,"n_rows":68,"n_cols":8,"rows_kept":68,"cut":false,"hidden":false,"merged":[[4,1,4,2],[5,1,5,2]]}
[" "]
["Clinical Q Assessment by Paul Swingle, Ph.D. for BrainMaster",null,null,null,null,"To learn more read Biofeedback for the Brain. "]
[null,null,null,null,null,"For greater detail refer to  Basic Neurotherapy: The Clinician's Guide both by Paul Swingle Ph.D."]
[]
["CLIENT NAME:","Sample numbers"]
["Assessment Date:","2011-10-19",null,null,"Probe","Notes"]
[null,null,null,null,null,"Rows5 - 70 of this report are protected cells"]
["CZ","Values","Ratio",null,null,"Red numbers and ! (Flag) Icon indicate medical significance",null,"Sig Flag"]
[{"$f":"calc!A2","v":"EO Alpha"},{"$f":"IF(calc!B2=\"\",\"\",calc!B2)","v":2.9299999999999997}," "," ",{"$f":"IF(H9=1,\"!\",\"\")","v":""},{"$f":"IF((IF(calc!F2=\"x\",calc!M2,(IF(calc!B2+calc!C2<calc!I2,calc!L2,(IF(calc!B2+calc!C2>calc!J2,calc!N2))))))=0,\"\",(IF(calc!F2=\"x\",calc!M2,(IF(calc!B2+calc!C2<calc!I2,calc!L2,(IF(calc!B2+calc!C2>calc!J2,calc!N2)))))))","v":""},null,{"$f":"calc!O2","v":0}]
[{"$f":"calc!A3","v":"EC Alpha"},{"$f":"IF(calc!B3=\"\",\"\",calc!B3)","v":4.1500000000000004},{"$f":"IF(calc!C3=\"\",\"\",calc!C3)","v":""},null,{"$f":"IF(H10=1,\"!\",\"\")","v":""},{"$f":"IF((IF(calc!F3=\"x\",calc!M3,(IF(calc!B3+calc!C3<calc!I3,calc!L3,(IF(calc!B3+calc!C3>calc!J3,calc!N3))))))=0,\"\",(IF(calc!F3=\"x\",calc!M3,(IF(calc!B3+calc!C3<calc!I3,calc!L3,(IF(calc!B3+calc!C3>calc!J3,calc!N3)))))))","v":""},null,{"$f":"calc!O3","v":0}]
[{"$f":"calc!A4","v":"Percent change EO to EC Alpha > 30%"},{"$f":"IF(calc!B4=\"\",\"\",calc!B4)","v":""},{"$f":"IF(calc!C4=\"\",\"\",calc!C4)","v":0.41638225255972722},null,"",{"$f":"IF((IF(calc!F4=\"x\",calc!M4,(IF(calc!B4+calc!C4<calc!I4,calc!L4,(IF(calc!B4+calc!C4>calc!J4,calc!N4))))))=0,\"\",(IF(calc!F4=\"x\",calc!M4,(IF(calc!B4+calc!C4<calc!I4,calc!L4,(IF(calc!B4+calc!C4>calc!J4,calc!N4)))))))","v":"If < 30% or negative, probe for visual processing (memory) problem; poor retention of information and/or poor short term memory; also refer to O1 Alpha EO to EC description."},null,{"$f":"calc!O4","v":0}]
[{"$f":"calc!A5","v":"EO Alpha Recovery"},{"$f":"IF(calc!B5=\"\",\"\",calc!B5)","v":2.87},{"$f":"IF(calc!C5=\"\",\"\",calc!C5)","v":""},null,"",{"$f":"IF((IF(calc!F5=\"x\",calc!M5,(IF(calc!B5+calc!C5<calc!I5,calc!L5,(IF(calc!B5+calc!C5>calc!J5,calc!N5))))))=0,\"\",(IF(calc!F5=\"x\",calc!M5,(IF(calc!B5+calc!C5<calc!I5,calc!L5,(IF(calc!B5+calc!C5>calc!J5,calc!N5)))))))","v":""},null,{"$f":"calc!O5","v":0}]
[{"$f":"calc!A6","v":"% difference EO Alpha \nfrom initial EO after EC < 25% "},{"$f":"IF(calc!B6=\"\",\"\",calc!B6)","v":""},{"$f":"IF(calc!C6=\"\",\"\",calc!C6)","v":-2.0905923344947598E-2},null,"",{"$f":"IF((IF(calc!F6=\"x\",calc!M6,(IF(calc!B6+calc!C6<calc!I6,calc!L6,(IF(calc!B6+calc!C6>calc!J6,calc!N6))))))=0,\"\",(IF(calc!F6=\"x\",calc!M6,(IF(calc!B6+calc!C6<calc!I6,calc!L6,(IF(calc!B6+calc!C6>calc!J6,calc!N6)))))))","v":"If > 25%, probe for foggy thinking."},null,{"$f":"calc!O6","v":0}]
[{"$f":"calc!A7","v":"Theta Amplitude EO"},{"$f":"IF(calc!B7=\"\",\"\",calc!B7)","v":4.66},{"$f":"IF(calc!C7=\"\",\"\",calc!C7)","v":""},null,"",{"$f":"IF((IF(calc!F7=\"x\",calc!M7,(IF(calc!B7+calc!C7<calc!I7,calc!L7,(IF(calc!B7+calc!C7>calc!J7,calc!N7))))))=0,\"\",(IF(calc!F7=\"x\",calc!M7,(IF(calc!B7+calc!C7<calc!I7,calc!L7,(IF(calc!B7+calc!C7>calc!J7,calc!N7)))))))","v":""},null,{"$f":"calc!O7","v":0}]
[{"$f":"calc!A8","v":"Beta Amplitude EO"},{"$f":"IF(calc!B8=\"\",\"\",calc!B8)","v":3.6749999999999998},{"$f":"IF(calc!C8=\"\",\"\",calc!C8)","v":""},null,"",{"$f":"IF((IF(calc!F8=\"x\",calc!M8,(IF(calc!B8+calc!C8<calc!I8,calc!L8,(IF(calc!B8+calc!C8>calc!J8,calc!N8))))))=0,\"\",(IF(calc!F8=\"x\",calc!M8,(IF(calc!B8+calc!C8<calc!I8,calc!L8,(IF(calc!B8+calc!C8>calc!J8,calc!N8)))))))","v":""},null,{"$f":"calc!O8","v":0}]
[{"$f":"calc!A9","v":"EO Theta/Beta < 2.2"},{"$f":"IF(calc!B9=\"\",\"\",calc!B9)","v":1.2680272108843538},{"$f":"IF(calc!C9=\"\",\"\",calc!C9)","v":""},null,"",{"$f":"IF((IF(calc!F9=\"x\",calc!M9,(IF(calc!B9+calc!C9<calc!I9,calc!L9,(IF(calc!B9+calc!C9>calc!J9,calc!N9))))))=0,\"\",(IF(calc!F9=\"x\",calc!M9,(IF(calc!B9+calc!C9<calc!I9,calc!L9,(IF(calc!B9+calc!C9>calc!J9,calc!N9)))))))","v":"If > 2.2, probe for CADD also refer to UT T/B description. "},null,{"$f":"calc!O9","v":0}]
[{"$f":"calc!A10","v":"Theta Amplitude Under Task UT"},{"$f":"IF(calc!B10=\"\",\"\",calc!B10)","v":5.67},{"$f":"IF(calc!C10=\"\",\"\",calc!C10)","v":""},null,"",{"$f":"IF((IF(calc!F10=\"x\",calc!M10,(IF(calc!B10+calc!C10<calc!I10,calc!L10,(IF(calc!B10+calc!C10>calc!J10,calc!N10))))))=0,\"\",(IF(calc!F10=\"x\",calc!M10,(IF(calc!B10+calc!C10<calc!I10,calc!L10,(IF(calc!B10+calc!C10>calc!J10,calc!N10)))))))","v":""},null,{"$f":"calc!O10","v":0}]
[{"$f":"calc!A11","v":"Beta Amplitude UT"},{"$f":"IF(calc!B11=\"\",\"\",calc!B11)","v":3.13},{"$f":"IF(calc!C11=\"\",\"\",calc!C11)","v":""},null,"",{"$f":"IF((IF(calc!F11=\"x\",calc!M11,(IF(calc!B11+calc!C11<calc!I11,calc!L11,(IF(calc!B11+calc!C11>calc!J11,calc!N11))))))=0,\"\",(IF(calc!F11=\"x\",calc!M11,(IF(calc!B11+calc!C11<calc!I11,calc!L11,(IF(calc!B11+calc!C11>calc!J11,calc!N11)))))))","v":""},null,{"$f":"calc!O11","v":0}]
[{"$f":"calc!A12","v":"Theta/Beta UT < 2.2"},{"$f":"IF(calc!B12=\"\",\"\",calc!B12)","v":1.8115015974440896},{"$f":"IF(calc!C12=\"\",\"\",calc!C12)","v":""},null,"",{"$f":"IF((IF(calc!F12=\"x\",calc!M12,(IF(calc!B12+calc!C12<calc!I12,calc!L12,(IF(calc!B12+calc!C12>calc!J12,calc!N12))))))=0,\"\",(IF(calc!F12=\"x\",calc!M12,(IF(calc!B12+calc!C12<calc!I12,calc!L12,(IF(calc!B12+calc!C12>calc!J12,calc!N12)))))))","v":"If >2.2, probe for CADD (ratio should drop UT); If >3.0, probe for AD(H)D.  If > 2.2 and if CZ EO T/B < 2.2, probe for ADD and/or problems with poor reading comprehension/retention."},null,{"$f":"calc!O12","v":0}]
[{"$f":"calc!A13","v":"Percent change T/B EO to T/B EO UT < 15%"},{"$f":"IF(calc!B13=\"\",\"\",calc!B13)","v":""},{"$f":"IF(calc!C13=\"\",\"\",calc!C13)","v":0.42859836279120794},null,"!",{"$f":"IF((IF(calc!F13=\"x\",calc!M13,(IF(calc!B13+calc!C13<calc!I13,calc!L13,(IF(calc!B13+calc!C13>calc!J13,calc!N13))))))=0,\"\",(IF(calc!F13=\"x\",calc!M13,(IF(calc!B13+calc!C13<calc!I13,calc!L13,(IF(calc!B13+calc!C13>calc!J13,calc!N13)))))))","v":"If positive and > 15%, probe for CADD."},null,{"$f":"calc!O13","v":1}]
[{"$f":"calc!A14","v":"% Beta Increase UT < 15%"},{"$f":"IF(calc!B14=\"\",\"\",calc!B14)","v":""},{"$f":"IF(calc!C14=\"\",\"\",calc!C14)","v":-0.17412140575079871},null,"",{"$f":"IF((IF(calc!F14=\"x\",calc!M14,(IF(calc!B14+calc!C14<calc!I14,calc!L14,(IF(calc!B14+calc!C14>calc!J14,calc!N14))))))=0,\"\",(IF(calc!F14=\"x\",calc!M14,(IF(calc!B14+calc!C14<calc!I14,calc!L14,(IF(calc!B14+calc!C14>calc!J14,calc!N14)))))))","v":"If > 15%, probe for getting overly tired when reading or problem solving."},null,{"$f":"calc!O14","v":0}]
[{"$f":"calc!A15","v":"Total Amplitude < 60"},{"$f":"IF(calc!B15=\"\",\"\",calc!B15)","v":11.760000000000002},{"$f":"IF(calc!C15=\"\",\"\",calc!C15)","v":""},null,"",{"$f":"IF((IF(calc!F15=\"x\",calc!M15,(IF(calc!B15+calc!C15<calc!I15,calc!L15,(IF(calc!B15+calc!C15>calc!J15,calc!N15))))))=0,\"\",(IF(calc!F15=\"x\",calc!M15,(IF(calc!B15+calc!C15<calc!I15,calc!L15,(IF(calc!B15+calc!C15>calc!J15,calc!N15)))))))","v":"If > 60 probe for development delay, autistic spectrum behavior, marked cognitive deficits."},null,{"$f":"calc!O15","v":0}]
[{"$f":"calc!A16","v":"Theta Amplitude preceding Omni"},{"$f":"IF(calc!B16=\"\",\"\",calc!B16)","v":5.19},{"$f":"IF(calc!C16=\"\",\"\",calc!C16)","v":""},null,"",{"$f":"IF((IF(calc!F16=\"x\",calc!M16,(IF(calc!B16+calc!C16<calc!I16,calc!L16,(IF(calc!B16+calc!C16>calc!J16,calc!N16))))))=0,\"\",(IF(calc!F16=\"x\",calc!M16,(IF(calc!B16+calc!C16<calc!I16,calc!L16,(IF(calc!B16+calc!C16>calc!J16,calc!N16)))))))","v":""},null,{"$f":"calc!O16","v":0}]
[{"$f":"calc!A17","v":"Theta Amplitude with Omni"},{"$f":"IF(calc!B17=\"\",\"\",calc!B17)","v":4.4849999999999994},{"$f":"IF(calc!C17=\"\",\"\",calc!C17)","v":""},null,"",{"$f":"IF((IF(calc!F17=\"x\",calc!M17,(IF(calc!B17+calc!C17<calc!I17,calc!L17,(IF(calc!B17+calc!C17>calc!J17,calc!N17))))))=0,\"\",(IF(calc!F17=\"x\",calc!M17,(IF(calc!B17+calc!C17<calc!I17,calc!L17,(IF(calc!B17+calc!C17>calc!J17,calc!N17)))))))","v":""},null,{"$f":"calc!O17","v":0}]
[{"$f":"calc!A18","v":"Percent change in Theta with Omni   > -5%"},{"$f":"IF(calc!B18=\"\",\"\",calc!B18)","v":""},{"$f":"IF(calc!C18=\"\",\"\",calc!C18)","v":-0.15719063545150525},null,"!",{"$f":"IF((IF(calc!F18=\"x\",calc!M18,(IF(calc!B18+calc!C18<calc!I18,calc!L18,(IF(calc!B18+calc!C18>calc!J18,calc!N18))))))=0,\"\",(IF(calc!F18=\"x\",calc!M18,(IF(calc!B18+calc!C18<calc!I18,calc!L18,(IF(calc!B18+calc!C18>calc!J18,calc!N18)))))))","v":"Positive % indicates Theta increase with Omni sound.  If % is negative and > 5, prescribe for home use (positive % indicates Theta increase)."},null,{"$f":"calc!O18","v":1}]
[{"$f":"calc!A19","v":"Alpha Peak Frequency EC >9.5"},{"$f":"IF(calc!B19=\"\",\"\",calc!B19)","v":10.45},{"$f":"IF(calc!C19=\"\",\"\",calc!C19)","v":""},null,"",{"$f":"IF((IF(calc!F19=\"x\",calc!M19,(IF(calc!B19+calc!C19<calc!I19,calc!L19,(IF(calc!B19+calc!C19>calc!J19,calc!N19))))))=0,\"\",(IF(calc!F19=\"x\",calc!M19,(IF(calc!B19+calc!C19<calc!I19,calc!L19,(IF(calc!B19+calc!C19>calc!J19,calc!N19)))))))","v":"If < 9.5 probe for mental sluggishness."},null,{"$f":"calc!O19","v":0}]
[{"$f":"calc!A20","v":"Alpha Peak Frequency EO >9.5"},{"$f":"IF(calc!B20=\"\",\"\",calc!B20)","v":10.61},{"$f":"IF(calc!C20=\"\",\"\",calc!C20)","v":""},null,"",{"$f":"IF((IF(calc!F20=\"x\",calc!M20,(IF(calc!B20+calc!C20<calc!I20,calc!L20,(IF(calc!B20+calc!C20>calc!J20,calc!N20))))))=0,\"\",(IF(calc!F20=\"x\",calc!M20,(IF(calc!B20+calc!C20<calc!I20,calc!L20,(IF(calc!B20+calc!C20>calc!J20,calc!N20)))))))","v":"If < 9.5 probe for mental sluggishness."},null,{"$f":"calc!O20","v":0}]
[{"$f":"calc!A21","v":"Theta/SMR EC < 3"},{"$f":"IF(calc!B21=\"\",\"\",calc!B21)","v":1.8700361010830324},{"$f":"IF(calc!C21=\"\",\"\",calc!C21)","v":""},null,"",{"$f":"IF((IF(calc!F21=\"x\",calc!M21,(IF(calc!B21+calc!C21<calc!I21,calc!L21,(IF(calc!B21+calc!C21>calc!J21,calc!N21))))))=0,\"\",(IF(calc!F21=\"x\",calc!M21,(IF(calc!B21+calc!C21<calc!I21,calc!L21,(IF(calc!B21+calc!C21>calc!J21,calc!N21)))))))","v":"If > 3, probe for inability to sit still or quiet the body; sleep disturbance as in trouble falling asleep. If > 3, probe for problems related to muscle activity such as headaches, chronic pain, body tremors, dystonia & seizure disorders that have a motor component."},null,{"$f":"calc!O21","v":0}]
[]
["O1","Values","Ratio"]
[{"$f":"calc!A24","v":"Alpha EO"},{"$f":"IF(calc!B24=\"\",\"\",calc!B24)","v":1.79},{"$f":"IF(calc!C24=\"\",\"\",calc!C24)","v":""},null,{"$f":"IF(H31=1,\"!\",\"\")","v":""},{"$f":"IF((IF(calc!F24=\"x\",calc!M24,(IF(calc!B24+calc!C24<calc!I24,calc!L24,(IF(calc!B24+calc!C24>calc!J24,calc!N24))))))=0,\"\",(IF(calc!F24=\"x\",calc!M24,(IF(calc!B24+calc!C24<calc!I24,calc!L24,(IF(calc!B24+calc!C24>calc!J24,calc!N24)))))))","v":""},null,{"$f":"calc!O24","v":0}]
[{"$f":"calc!A25","v":"Alpha EC"},{"$f":"IF(calc!B25=\"\",\"\",calc!B25)","v":4.79},{"$f":"IF(calc!C25=\"\",\"\",calc!C25)","v":""},null,"",{"$f":"IF((IF(calc!F25=\"x\",calc!M25,(IF(calc!B25+calc!C25<calc!I25,calc!L25,(IF(calc!B25+calc!C25>calc!J25,calc!N25))))))=0,\"\",(IF(calc!F25=\"x\",calc!M25,(IF(calc!B25+calc!C25<calc!I25,calc!L25,(IF(calc!B25+calc!C25>calc!J25,calc!N25)))))))","v":""},null,{"$f":"calc!O25","v":0}]
[{"$f":"calc!A26","v":"% Change in Alpha EO to EC > 50%"},{"$f":"IF(calc!B26=\"\",\"\",calc!B26)","v":""},{"$f":"IF(calc!C26=\"\",\"\",calc!C26)","v":1.6759776536312849},null,"!",{"$f":"IF((IF(calc!F26=\"x\",calc!M26,(IF(calc!B26+calc!C26<calc!I26,calc!L26,(IF(calc!B26+calc!C26>calc!J26,calc!N26))))))=0,\"\",(IF(calc!F26=\"x\",calc!M26,(IF(calc!B26+calc!C26<calc!I26,calc!L26,(IF(calc!B26+calc!C26>calc!J26,calc!N26)))))))","v":"If EC increase is < 50% or negative, and also seen at Cz, probe for traumatic stress. If 150% + probe for artistic interest or skills (visual arts, dance, poetry, carpentry, etc.)"},null,{"$f":"calc!O26","v":1}]
[{"$f":"calc!A27","v":"EO Alpha Recovery "},{"$f":"IF(calc!B27=\"\",\"\",calc!B27)","v":2.2999999999999998},{"$f":"IF(calc!C27=\"\",\"\",calc!C27)","v":""},null,"",{"$f":"IF((IF(calc!F27=\"x\",calc!M27,(IF(calc!B27+calc!C27<calc!I27,calc!L27,(IF(calc!B27+calc!C27>calc!J27,calc!N27))))))=0,\"\",(IF(calc!F27=\"x\",calc!M27,(IF(calc!B27+calc!C27<calc!I27,calc!L27,(IF(calc!B27+calc!C27>calc!J27,calc!N27)))))))","v":""},null,{"$f":"calc!O27","v":0}]
[{"$f":"calc!A28","v":"% change EO Alpha \nto EO Alpha after EC < 25%"},{"$f":"IF(calc!B28=\"\",\"\",calc!B28)","v":""},{"$f":"IF(calc!C28=\"\",\"\",calc!C28)","v":0.2849162011173183},null,"!",{"$f":"IF((IF(calc!F28=\"x\",calc!M28,(IF(calc!B28+calc!C28<calc!I28,calc!L28,(IF(calc!B28+calc!C28>calc!J28,calc!N28))))))=0,\"\",(IF(calc!F28=\"x\",calc!M28,(IF(calc!B28+calc!C28<calc!I28,calc!L28,(IF(calc!B28+calc!C28>calc!J28,calc!N28)))))))","v":"If >25%, probe for foggy thinking."},null,{"$f":"calc!O28","v":1}]
[{"$f":"calc!A29","v":"Theta Amplitude EO"},{"$f":"IF(calc!B29=\"\",\"\",calc!B29)","v":2.52},{"$f":"IF(calc!C29=\"\",\"\",calc!C29)","v":""},null,"",{"$f":"IF((IF(calc!F29=\"x\",calc!M29,(IF(calc!B29+calc!C29<calc!I29,calc!L29,(IF(calc!B29+calc!C29>calc!J29,calc!N29))))))=0,\"\",(IF(calc!F29=\"x\",calc!M29,(IF(calc!B29+calc!C29<calc!I29,calc!L29,(IF(calc!B29+calc!C29>calc!J29,calc!N29)))))))","v":""},null,{"$f":"calc!O29","v":0}]
[{"$f":"calc!A30","v":"Beta Amplitude EO"},{"$f":"IF(calc!B30=\"\",\"\",calc!B30)","v":2.73},{"$f":"IF(calc!C30=\"\",\"\",calc!C30)","v":""},null,"",{"$f":"IF((IF(calc!F30=\"x\",calc!M30,(IF(calc!B30+calc!C30<calc!I30,calc!L30,(IF(calc!B30+calc!C30>calc!J30,calc!N30))))))=0,\"\",(IF(calc!F30=\"x\",calc!M30,(IF(calc!B30+calc!C30<calc!I30,calc!L30,(IF(calc!B30+calc!C30>calc!J30,calc!N30)))))))","v":""},null,{"$f":"calc!O30","v":0}]
[{"$f":"calc!A31","v":"Theta/Beta EO 1.8 - 2.2"},{"$f":"IF(calc!B31=\"\",\"\",calc!B31)","v":0.92307692307692313},{"$f":"IF(calc!C31=\"\",\"\",calc!C31)","v":""},null,"!",{"$f":"IF((IF(calc!F31=\"x\",calc!M31,(IF(calc!B31+calc!C31<calc!I31,calc!L31,(IF(calc!B31+calc!C31>calc!J31,calc!N31))))))=0,\"\",(IF(calc!F31=\"x\",calc!M31,(IF(calc!B31+calc!C31<calc!I31,calc!L31,(IF(calc!B31+calc!C31>calc!J31,calc!N31)))))))","v":"If < 1.8, probe for poor stress tolerance, racing thoughts, anxiety, inefficient self-quieting.  If << 1.8 probe for predisposition to self-medicating behaviors, GAD & stress precipitated depression. If > 3.0 probe for cognitive deficiencies or Asperger's patterns; also see F4/F3 Beta for symptom.  Also applies to T/B EC."},null,{"$f":"calc!O31","v":1}]
[{"$f":"calc!A32","v":"Theta Amplitude EC"},{"$f":"IF(calc!B32=\"\",\"\",calc!B32)","v":4.66},{"$f":"IF(calc!C32=\"\",\"\",calc!C32)","v":""},null,"",{"$f":"IF((IF(calc!F32=\"x\",calc!M32,(IF(calc!B32+calc!C32<calc!I32,calc!L32,(IF(calc!B32+calc!C32>calc!J32,calc!N32))))))=0,\"\",(IF(calc!F32=\"x\",calc!M32,(IF(calc!B32+calc!C32<calc!I32,calc!L32,(IF(calc!B32+calc!C32>calc!J32,calc!N32)))))))","v":""},null,{"$f":"calc!O32","v":0}]
[{"$f":"calc!A33","v":"Beta Amplitude EC"},{"$f":"IF(calc!B33=\"\",\"\",calc!B33)","v":5.73},{"$f":"IF(calc!C33=\"\",\"\",calc!C33)","v":""},null,"",{"$f":"IF((IF(calc!F33=\"x\",calc!M33,(IF(calc!B33+calc!C33<calc!I33,calc!L33,(IF(calc!B33+calc!C33>calc!J33,calc!N33))))))=0,\"\",(IF(calc!F33=\"x\",calc!M33,(IF(calc!B33+calc!C33<calc!I33,calc!L33,(IF(calc!B33+calc!C33>calc!J33,calc!N33)))))))","v":""},null,{"$f":"calc!O33","v":0}]
[{"$f":"calc!A34","v":"Theta/Beta EC 1.8 - 2.2"},{"$f":"IF(calc!B34=\"\",\"\",calc!B34)","v":0.81326352530541013},{"$f":"IF(calc!C34=\"\",\"\",calc!C34)","v":""},null,"!",{"$f":"IF((IF(calc!F34=\"x\",calc!M34,(IF(calc!B34+calc!C34<calc!I34,calc!L34,(IF(calc!B34+calc!C34>calc!J34,calc!N34))))))=0,\"\",(IF(calc!F34=\"x\",calc!M34,(IF(calc!B34+calc!C34<calc!I34,calc!L34,(IF(calc!B34+calc!C34>calc!J34,calc!N34)))))))","v":"If both EC and EO about = or < 1.5, probe for sleep disturbance.  Also see T/B EO for description of probes."},null,{"$f":"calc!O34","v":1}]
[{"$f":"calc!A35","v":"% change EO to EC T/B ratio  >  25%"},{"$f":"IF(calc!B35=\"\",\"\",calc!B35)","v":""},{"$f":"IF(calc!C35=\"\",\"\",calc!C35)","v":-0.13502806206668874},null,"",{"$f":"IF((IF(calc!F35=\"x\",calc!M35,(IF(calc!B35+calc!C35<calc!I35,calc!L35,(IF(calc!B35+calc!C35>calc!J35,calc!N35))))))=0,\"\",(IF(calc!F35=\"x\",calc!M35,(IF(calc!B35+calc!C35<calc!I35,calc!L35,(IF(calc!B35+calc!C35>calc!J35,calc!N35)))))))","v":"If % is negative and > 25, question sleep onset difficulties. Positive % means an increase from EO to EC."},null,{"$f":"calc!O35","v":0}]
[{"$f":"calc!A36","v":"Alpha Peak Frequency EC > 9.5"},{"$f":"IF(calc!B36=\"\",\"\",calc!B36)","v":10.35},{"$f":"IF(calc!C36=\"\",\"\",calc!C36)","v":""},null,"",{"$f":"IF((IF(calc!F36=\"x\",calc!M36,(IF(calc!B36+calc!C36<calc!I36,calc!L36,(IF(calc!B36+calc!C36>calc!J36,calc!N36))))))=0,\"\",(IF(calc!F36=\"x\",calc!M36,(IF(calc!B36+calc!C36<calc!I36,calc!L36,(IF(calc!B36+calc!C36>calc!J36,calc!N36)))))))","v":"If < 9.5, probe for mental sluggishness."},null,{"$f":"calc!O36","v":0}]
[{"$f":"calc!A37","v":"Alpha Peak Frequency EO > 9.5"},{"$f":"IF(calc!B37=\"\",\"\",calc!B37)","v":10.78},{"$f":"IF(calc!C37=\"\",\"\",calc!C37)","v":""},null,"",{"$f":"IF((IF(calc!F37=\"x\",calc!M37,(IF(calc!B37+calc!C37<calc!I37,calc!L37,(IF(calc!B37+calc!C37>calc!J37,calc!N37))))))=0,\"\",(IF(calc!F37=\"x\",calc!M37,(IF(calc!B37+calc!C37<calc!I37,calc!L37,(IF(calc!B37+calc!C37>calc!J37,calc!N37)))))))","v":"If < 9.5, probe for mental sluggishness."},null,{"$f":"calc!O37","v":0}]
[]
["F3 and F4","F3","F4","Ratio"]
[{"$f":"calc!A53","v":"Theta Amplitude EC"},{"$f":"calc!B40","v":4.6399999999999997},{"$f":"calc!B53","v":6.08},null,{"$f":"IF(H47=1,\"!\",\"\")","v":""},{"$f":"IF((IF(calc!F53=\"x\",calc!M53,(IF(calc!B53+calc!C53<calc!I53,calc!L53,(IF(calc!B53+calc!C53>calc!J53,calc!N53))))))=0,\"\",(IF(calc!F53=\"x\",calc!M53,(IF(calc!B53+calc!C53<calc!I53,calc!L53,(IF(calc!B53+calc!C53>calc!J53,calc!N53)))))))","v":""},null,{"$f":"calc!O53","v":0}]
[{"$f":"calc!A54","v":"Beta Amplitude EC"},{"$f":"calc!B41","v":3.85},{"$f":"calc!B54","v":4.47},null,"",{"$f":"IF((IF(calc!F54=\"x\",calc!M54,(IF(calc!B54+calc!C54<calc!I54,calc!L54,(IF(calc!B54+calc!C54>calc!J54,calc!N54))))))=0,\"\",(IF(calc!F54=\"x\",calc!M54,(IF(calc!B54+calc!C54<calc!I54,calc!L54,(IF(calc!B54+calc!C54>calc!J54,calc!N54)))))))","v":""},null,{"$f":"calc!O54","v":0}]
[{"$f":"calc!A55","v":"Theta /Beta EC < 2.2"},{"$f":"calc!B42","v":1.2051948051948052},{"$f":"calc!B55","v":1.3601789709172261},null,"",{"$f":"IF((IF(calc!F55=\"x\",calc!M55,(IF(calc!B55+calc!C55<calc!I55,calc!L55,(IF(calc!B55+calc!C55>calc!J55,calc!N55))))))=0,\"\",(IF(calc!F55=\"x\",calc!M55,(IF(calc!B55+calc!C55<calc!I55,calc!L55,(IF(calc!B55+calc!C55>calc!J55,calc!N55)))))))","v":"If F3 or F4 Theta/Beta EC > 2.2, probe for cognitive deficiencies associated with retrieval of information, impulse control, emotional volatility, etc.  Probe for depression in adults & impulse control in children."},null,{"$f":"calc!O55","v":0}]
[{"$f":"calc!A56","v":"% Difference between\nF3 T/B & F4 T/B < 20%"},{"$f":"calc!B42","v":1.2051948051948052},{"$f":"calc!B55","v":1.3601789709172261},{"$f":"calc!C56","v":0.12859677543778458},"",{"$f":"IF((IF(calc!F56=\"x\",calc!M56,(IF(calc!B56+calc!C56<calc!I56,calc!L56,(IF(calc!B56+calc!C56>calc!J56,calc!N56))))))=0,\"\",(IF(calc!F56=\"x\",calc!M56,(IF(calc!B56+calc!C56<calc!I56,calc!L56,(IF(calc!B56+calc!C56>calc!J56,calc!N56)))))))","v":"If % difference b/w F3 T/B & F4 T/B EC is negative and > 20% probe for emotional volatility, anger management problems, emotional impulse control.  In males, in particular, emotional restrictions (very narrow emotional window) that seems to be a response to or effort to control emotional volatility."},null,{"$f":"calc!O56","v":0}]
[{"$f":"calc!A57","v":"Theta Amplitude EC"},{"$f":"calc!B44","v":4.6399999999999997},{"$f":"calc!B57","v":6.08},null,"",{"$f":"IF((IF(calc!F57=\"x\",calc!M57,(IF(calc!B57+calc!C57<calc!I57,calc!L57,(IF(calc!B57+calc!C57>calc!J57,calc!N57))))))=0,\"\",(IF(calc!F57=\"x\",calc!M57,(IF(calc!B57+calc!C57<calc!I57,calc!L57,(IF(calc!B57+calc!C57>calc!J57,calc!N57)))))))","v":""},null,{"$f":"calc!O57","v":0}]
[{"$f":"calc!A58","v":"Alpha Amplitude EC"},{"$f":"calc!B45","v":2.99},{"$f":"calc!B58","v":3.7},null,"",{"$f":"IF((IF(calc!F58=\"x\",calc!M58,(IF(calc!B58+calc!C58<calc!I58,calc!L58,(IF(calc!B58+calc!C58>calc!J58,calc!N58))))))=0,\"\",(IF(calc!F58=\"x\",calc!M58,(IF(calc!B58+calc!C58<calc!I58,calc!L58,(IF(calc!B58+calc!C58>calc!J58,calc!N58)))))))","v":""},null,{"$f":"calc!O58","v":0}]
[{"$f":"calc!A59","v":"Theta /Alpha EC  1.2 - 1.6"},{"$f":"calc!B46","v":1.551839464882943},{"$f":"calc!B59","v":1.6432432432432431},null,"!",{"$f":"IF((IF(calc!F59=\"x\",calc!M59,(IF(calc!B59+calc!C59<calc!I59,calc!L59,(IF(calc!B59+calc!C59>calc!J59,calc!N59))))))=0,\"\",(IF(calc!F59=\"x\",calc!M59,(IF(calc!B59+calc!C59<calc!I59,calc!L59,(IF(calc!B59+calc!C59>calc!J59,calc!N59)))))))","v":" If < 1.0, probe for frontal Alpha ADD - problems with organization, sequencing, sustained focus, planning, task completion, staying on task, talkativeness.  If << .8 probe for fibromyalgia, chronic fatigue and sleep disturbance."},null,{"$f":"calc!O59","v":1}]
[{"$f":"calc!A60","v":"Total Amplitude EC < 60"},{"$f":"calc!B47","v":11.48},{"$f":"calc!B60","v":14.25},null,"",{"$f":"IF((IF(calc!F60=\"x\",calc!M60,(IF(calc!B60+calc!C60<calc!I60,calc!L60,(IF(calc!B60+calc!C60>calc!J60,calc!N60))))))=0,\"\",(IF(calc!F60=\"x\",calc!M60,(IF(calc!B60+calc!C60<calc!I60,calc!L60,(IF(calc!B60+calc!C60>calc!J60,calc!N60)))))))","v":"If > 60, probe for development delays, autism spectrum disorder (especially if O1 Theta is high and the anterior cingulate gyrus is \"hot\"); memory / cognitive deficits in adults."},null,{"$f":"calc!O60","v":0}]
[{"$f":"calc!A61","v":"F4 / F3 Beta < ±15%"},{"$f":"calc!B41","v":3.85},{"$f":"calc!B54","v":4.47},{"$f":"calc!B61","v":0.16103896103896095},"!",{"$f":"IF((IF(calc!F61=\"x\",calc!M61,(IF(calc!B61+calc!C61<calc!I61,calc!L61,(IF(calc!B61+calc!C61>calc!J61,calc!N61))))))=0,\"\",(IF(calc!F61=\"x\",calc!M61,(IF(calc!B61+calc!C61<calc!I61,calc!L61,(IF(calc!B61+calc!C61>calc!J61,calc!N61)))))))","v":"If F4 Beta 15% > F3 Beta, probe for predisposition to depressed mood states in adults and impulse control in children.  If F4 Beta 20% > F3 Beta and F4/F3 Theta > 20% and F4 T/A 20% < F3 T/A (particularly when O1 T/B < 1.5), probe for fibromyalgia/chronic fatigue."},null,{"$f":"calc!O61","v":1}]
[{"$f":"calc!A62","v":"F4 / F3 Alpha < ±15%"},{"$f":"calc!B45","v":2.99},{"$f":"calc!B58","v":3.7},{"$f":"calc!B62","v":0.23745819397993309},"!",{"$f":"IF((IF(calc!F62=\"x\",calc!M62,(IF(calc!B62+calc!C62<calc!I62,calc!L62,(IF(calc!B62+calc!C62>calc!J62,calc!N62))))))=0,\"\",(IF(calc!F62=\"x\",calc!M62,(IF(calc!B62+calc!C62<calc!I62,calc!L62,(IF(calc!B62+calc!C62>calc!J62,calc!N62)))))))","v":"If F3 Alpha > F4 Alpha (negative %), probe for depression in adults and impulse control in children.  If F4 Alpha > F3 Alpha, probe for oppositional, defiant and socially aggressive or socially indifferent behavior; general elevated Alpha associated with emotional disregulation."},null,{"$f":"calc!O62","v":1}]
[{"$f":"calc!A63","v":"F4 / F3 Theta < ±15%"},{"$f":"calc!B40","v":4.6399999999999997},{"$f":"calc!B53","v":6.08},{"$f":"calc!B63","v":0.31034482758620702},"!",{"$f":"IF((IF(calc!F63=\"x\",calc!M63,(IF(calc!B63+calc!C63<calc!I63,calc!L63,(IF(calc!B63+calc!C63>calc!J63,calc!N63))))))=0,\"\",(IF(calc!F63=\"x\",calc!M63,(IF(calc!B63+calc!C63<calc!I63,calc!L63,(IF(calc!B63+calc!C63>calc!J63,calc!N63)))))))","v":"If F4 Theta 15% > F3 Theta, probe for emotional volatility or conversely restricted emotional range. If F3 Theta 15% > F4 Theta, probe for depression in adults & impulse control in children."},null,{"$f":"calc!O63","v":1}]
[]
["FZ","Values"]
[{"$f":"calc!A66","v":"Delta 2 Hz EC < 9.0 "},{"$f":"calc!B66","v":5.7650000000000006},null,null,{"$f":"IF(H60=1,\"!\",\"\")","v":""},{"$f":"IF((IF(calc!F66=\"x\",calc!M66,(IF(calc!B66+calc!C66<calc!I66,calc!L66,(IF(calc!B66+calc!C66>calc!J66,calc!N66))))))=0,\"\",(IF(calc!F66=\"x\",calc!M66,(IF(calc!B66+calc!C66<calc!I66,calc!L66,(IF(calc!B66+calc!C66>calc!J66,calc!N66)))))))","v":"If Delta (2 Hz) EC > 9.0 probe for cognitive deficits such as problems with concentration forgetfulness and comprehension, higher values can be associated with developmental delays and pain, will usually see remarkable patterns in F3 and F4 if Delta is high."},null,{"$f":"calc!O66","v":0}]
[{"$f":"calc!A67","v":"HiBeta Amplitude"},{"$f":"calc!B67","v":1.0950000000000002},null,null,"",{"$f":"IF((IF(calc!F67=\"x\",calc!M67,(IF(calc!B67+calc!C67<calc!I67,calc!L67,(IF(calc!B67+calc!C67>calc!J67,calc!N67))))))=0,\"\",(IF(calc!F67=\"x\",calc!M67,(IF(calc!B67+calc!C67<calc!I67,calc!L67,(IF(calc!B67+calc!C67>calc!J67,calc!N67)))))))","v":""},null,{"$f":"calc!O67","v":0}]
[{"$f":"calc!A68","v":"Beta Amplitude"},{"$f":"calc!B68","v":4.6349999999999998},null,null,"",{"$f":"IF((IF(calc!F68=\"x\",calc!M68,(IF(calc!B68+calc!C68<calc!I68,calc!L68,(IF(calc!B68+calc!C68>calc!J68,calc!N68))))))=0,\"\",(IF(calc!F68=\"x\",calc!M68,(IF(calc!B68+calc!C68<calc!I68,calc!L68,(IF(calc!B68+calc!C68>calc!J68,calc!N68)))))))","v":""},null,{"$f":"calc!O68","v":0}]
[{"$f":"calc!A69","v":"HiBeta/Beta .45 -.55"},{"$f":"calc!B69","v":0.23624595469255669},null,null,"!",{"$f":"IF((IF(calc!F69=\"x\",calc!M69,(IF(calc!B69+calc!C69<calc!I69,calc!L69,(IF(calc!B69+calc!C69>calc!J69,calc!N69))))))=0,\"\",(IF(calc!F69=\"x\",calc!M69,(IF(calc!B69+calc!C69<calc!I69,calc!L69,(IF(calc!B69+calc!C69>calc!J69,calc!N69)))))))","v":"If HiBeta/Beta < .45, probe for excessive passiveness.  If > .55, probe for stubborn behavior, OC tendencies or OCD, perseveration in autistic spectrum behaviors.  Assume hot midline (anterior cingulate gyrus) in treatment of autistic spectrum behaviors.  If > .60 or < .40, probe for anxiety; If >.80, probe for O/C behaviors.   If <.35, problematic passivity; .45 = open-minded and conciliatory. Caution! If there is an extremely elevated Beta amplitude, minimal ratio may result that does not indicate passive behavior."},null,{"$f":"calc!O69","v":1}]
[{"$f":"calc!A70","v":"Sum HiBeta + Beta < 15"},{"$f":"calc!B70","v":5.73},null,null,"",{"$f":"IF((IF(calc!F70=\"x\",calc!M70,(IF(calc!B70+calc!C70<calc!I70,calc!L70,(IF(calc!B70+calc!C70>calc!J70,calc!N70))))))=0,\"\",(IF(calc!F70=\"x\",calc!M70,(IF(calc!B70+calc!C70<calc!I70,calc!L70,(IF(calc!B70+calc!C70>calc!J70,calc!N70)))))))","v":"If Sum HiBeta + Beta > 15, probe for autistic spectrum behavior.   Implications of the 2 HiBeta values apply only if sum of amplitudes of 28-40 hz & Beta < 15. If summated amplitudes > 15, but 28-40/Beta is within normative range, probe for fretting and assume hot midline in treatment of autistic spectrum behaviors.  When < 15, clients reported less annoying thoughts: If > 16, \"hot\" midline."},null,{"$f":"calc!O70","v":0}]
[{"$f":"calc!A71","v":"LoAlpha Amplitude"},{"$f":"calc!B71","v":5.91},null,null,"",{"$f":"IF((IF(calc!F71=\"x\",calc!M71,(IF(calc!B71+calc!C71<calc!I71,calc!L71,(IF(calc!B71+calc!C71>calc!J71,calc!N71))))))=0,\"\",(IF(calc!F71=\"x\",calc!M71,(IF(calc!B71+calc!C71<calc!I71,calc!L71,(IF(calc!B71+calc!C71>calc!J71,calc!N71)))))))","v":""},null,{"$f":"calc!O71","v":0}]
[{"$f":"calc!A72","v":"HiAlpha Amplitude"},{"$f":"calc!B72","v":2.2749999999999999},null,null,"",{"$f":"IF((IF(calc!F72=\"x\",calc!M72,(IF(calc!B72+calc!C72<calc!I72,calc!L72,(IF(calc!B72+calc!C72>calc!J72,calc!N72))))))=0,\"\",(IF(calc!F72=\"x\",calc!M72,(IF(calc!B72+calc!C72<calc!I72,calc!L72,(IF(calc!B72+calc!C72>calc!J72,calc!N72)))))))","v":""},null,{"$f":"calc!O72","v":0}]
[{"$f":"calc!A73","v":"LoAlpha/HiAlpha < 1.5"},{"$f":"calc!B73","v":2.5978021978021979},null,null,"!",{"$f":"IF((IF(calc!F73=\"x\",calc!M73,(IF(calc!B73+calc!C73<calc!I73,calc!L73,(IF(calc!B73+calc!C73>calc!J73,calc!N73))))))=0,\"\",(IF(calc!F73=\"x\",calc!M73,(IF(calc!B73+calc!C73<calc!I73,calc!L73,(IF(calc!B73+calc!C73>calc!J73,calc!N73)))))))","v":"If > 1.5, probe for cognitive inefficiency, age related deficits in memory and cognitive processing, sleep disorders, cognitive processing disorders, problems  with concentration and forgetfulness.  M63If >> 1.5, probe for developmental delay, marked cognitive deficits; the lower this ratio, the better, as it reflects more efficient brain functioning."},null,{"$f":"calc!O73","v":1}]
[{"$f":"calc!A74","v":"Alpha Peak Frequency EC"},{"$f":"calc!B74","v":10.55},null,null,"",{"$f":"IF((IF(calc!F74=\"x\",calc!M74,(IF(calc!B74+calc!C74<calc!I74,calc!L74,(IF(calc!B74+calc!C74>calc!J74,calc!N74))))))=0,\"\",(IF(calc!F74=\"x\",calc!M74,(IF(calc!B74+calc!C74<calc!I74,calc!L74,(IF(calc!B74+calc!C74>calc!J74,calc!N74)))))))","v":"(This statistic is currently being used for research purposes)"},null,{"$f":"calc!O74","v":0}]

{"sheet":"input","index":1,"n_rows":123,"n_cols":16,"rows_kept":123,"cut":false,"hidden":false,"merged":[]}
["qat00001.csv"]
["c:\\brainm.20\\studies\\SM 52 Assessment A1A2\\sum00001.bsm"]
["   RUN","  NPTS","SITE"," TYPE","  Delta","  Theta","  Alpha","  Lo Alpha","  HiAlpha","  SMR","  Beta","  HiBetaGamma"," ( Theta/ Alpha)"," ( Theta/ Lo Alpha)"," ( Theta/ HiAlpha)"," ( Alpha/ HiAlpha)"]
[1,15,"     Cz","  MEAN",3.89,4.25,2.9,3.72,1.77,1.63,3.45,1,1.47,1.1399999999999999,2.4,1.64]
[1,15,"     Cz"," MEANF",8.6199999999999992,19.47,7.43,9.11,2.98,4.1500000000000004,12.31,0,2.62,2.14,6.53,2.4900000000000002]
[1,15,"     Cz"," STDDEV",1.89,2.1800000000000002,1.93,1.76,1.3,0.88,0.99,0.47,1.1299999999999999,1.24,1.67,1.48]
[1,15,"     Cz"," MODFRQ",1.38,4.8899999999999997,10.61,8.5,11.34,14.04,19.64,13.07,0.46,0.57999999999999996,0.43,0.94]
[2,15,"     Cz","  MEAN",4.5999999999999996,5.07,2.96,3.35,1.39,2.2999999999999998,3.9,0.92,1.71,1.51,3.64,2.12]
[2,15,"     Cz"," MEANF",9.69,20.39,5.35,7.38,1.97,4.7699999999999996,13.83,0,3.81,2.76,10.34,2.71]
[2,15,"     Cz"," STDDEV",2.85,2.04,1.6,1.51,0.68,1.24,1.34,0.38,1.28,1.35,3.02,2.36]
[2,15,"     Cz"," MODFRQ",1.39,4.83,10.57,8.49,11.33,14.14,19.07,16.8,0.46,0.56999999999999995,0.43,0.93]
[3,15,"     Cz","  MEAN",4.93,5.18,4.1500000000000004,4.68,2.63,2.77,4.26,1.0900000000000001,1.25,1.1100000000000001,1.97,1.58]
[3,15,"     Cz"," MEANF",7.79,16.47,6.42,13.43,2.29,5.37,11.27,7.0000000000000007E-2,2.57,1.23,7.18,2.8]
[3,15,"     Cz"," STDDEV",3.08,2.75,2.58,2.25,0.95,1.37,1.9,0.53,1.07,1.23,2.9,2.72]
[3,15,"     Cz"," MODFRQ",1.45,4.78,10.45,8.61,11.31,14.14,18.670000000000002,26.27,0.46,0.56000000000000005,0.42,0.92]
[4,15,"     Cz","  MEAN",6.44,5.91,2.87,1.84,2.27,1.75,2.73,1.35,2.06,3.21,2.6,1.26]
[4,15,"     Cz"," MEANF",13.41,21.72,7.03,4.05,2.83,2.85,9.1300000000000008,1.84,3.09,5.36,7.68,2.4900000000000002]
[4,15,"     Cz"," STDDEV",4.3,3.07,1.54,0.95,1.06,1.28,1.59,0.97,2,3.23,2.9,1.45]
[4,15,"     Cz"," MODFRQ",1.37,4.6500000000000004,10.85,8.4700000000000006,11.36,13.93,18.760000000000002,24.08,0.43,0.55000000000000004,0.41,0.96]
[5,15,"     Cz","  MEAN",4.4400000000000004,6,2.69,1.92,1.49,1.91,3.35,1.93,2.23,3.12,4.0199999999999996,1.8]
[5,15,"     Cz"," MEANF",10.51,22.49,6.33,4.8,3.23,3.67,10.99,1.59,3.55,4.68,6.97,1.96]
[5,15,"     Cz"," STDDEV",3.38,3.64,1.1100000000000001,0.94,0.75,1.28,2.56,1.69,3.28,3.89,4.88,1.49]
[5,15,"     Cz"," MODFRQ",1.37,4.66,10.82,8.4600000000000009,11.49,13.79,19.190000000000001,26.04,0.43,0.55000000000000004,0.41,0.94]
[6,15,"     Cz","  MEAN",4.7699999999999996,5.67,3.01,1.17,1.73,1.73,2.67,0.81,1.88,4.8600000000000003,3.27,1.74]
[6,15,"     Cz"," MEANF",13.12,20.71,7.59,4.25,3.65,2.95,8.1300000000000008,0.11,2.73,4.87,5.68,2.08]
[6,15,"     Cz"," STDDEV",1.92,3.23,1.46,1.08,1.35,1.31,1.1599999999999999,0.57999999999999996,2.21,2.99,2.4,1.0900000000000001]
[6,15,"     Cz"," MODFRQ",1.34,4.55,10.9,8.56,11.43,13.71,19.329999999999998,15.17,0.42,0.53,0.4,0.95]
[7,15,"     Cz","  MEAN",5.48,5.03,2.88,2.59,1.8,1.49,3.13,0.88,1.75,1.95,2.8,1.6]
[7,15,"     Cz"," MEANF",13.41,18.97,8.09,4.6100000000000003,3.61,2.5099999999999998,8.27,0,2.35,4.1100000000000003,5.26,2.2400000000000002]
[7,15,"     Cz"," STDDEV",2.4700000000000002,2.41,1.89,1.77,0.81,0.78,2.5499999999999998,0.43,1.28,1.36,2.98,2.33]
[7,15,"     Cz"," MODFRQ",1.35,4.58,10.93,8.4700000000000006,11.42,13.55,19.39,7.47,0.42,0.54,0.4,0.96]
[8,15,"     Cz","  MEAN",5.33,5.19,3.19,3.25,1.63,1.71,4.47,1.54,1.63,1.6,3.18,1.95]
[8,15,"     Cz"," MEANF",11.37,18.73,5.67,6.83,2.0299999999999998,3.99,13.51,1.05,3.3,2.74,9.2100000000000009,2.79]
[8,15,"     Cz"," STDDEV",4.3499999999999996,3.07,1.62,1.74,0.9,0.81,3.35,1.46,1.9,1.77,3.4,1.79]
[8,15,"     Cz"," MODFRQ",1.38,4.8499999999999996,10.66,8.4700000000000006,11.31,14.07,19.28,17.739999999999998,0.45,0.56999999999999995,0.43,0.94]
[9,15,"     Cz","  MEAN",6.4,4.62,4.01,5.12,1.96,2.33,4.7300000000000004,1.93,1.1499999999999999,0.9,2.36,2.04]
[9,15,"     Cz"," MEANF",10.62,15.99,5.7,7.47,1.95,2.62,13.83,2.4500000000000002,2.8,2.14,8.2100000000000009,2.93]
[9,15,"     Cz"," STDDEV",4.6900000000000004,4.08,1.48,4.3499999999999996,0.96,1.39,2.67,1.95,2.76,0.94,4.26,1.54]
[9,15,"     Cz"," MODFRQ",1.34,4.58,10.68,8.51,11.31,13.73,19.829999999999998,22.87,0.43,0.54,0.4,0.94]
[10,15,"     Cz","  MEAN",4.05,4.3499999999999996,3.37,3.49,1.64,2.06,3.87,1.65,1.29,1.24,2.65,2.0499999999999998]
[10,15,"     Cz"," MEANF",9.17,15.35,7.02,8.49,2.36,3.31,14.79,0.92,2.19,1.81,6.51,2.97]
[10,15,"     Cz"," STDDEV",2.44,2.5499999999999998,1.58,2.4900000000000002,0.78,1.42,2.36,1.67,1.61,1.02,3.26,2.02]
[10,15,"     Cz"," MODFRQ",1.37,4.9800000000000004,10.57,8.5,11.3,13.97,18.97,17.61,0.47,0.59,0.44,0.94]
[11,15,"     O1","  MEAN",2.39,2.19,1.95,1.51,1.53,1.55,2.64,1.55,1.1200000000000001,1.45,1.43,1.28]
[11,15,"     O1"," MEANF",9.17,12.93,7.76,5.37,3.16,5.05,14.59,0.44,1.67,2.41,4.09,2.46]
[11,15,"     O1"," STDDEV",1.06,1.02,1.05,0.95,0.82,0.95,0.95,0.86,0.98,1.07,1.25,1.28]
[11,15,"     O1"," MODFRQ",1.26,4.78,10.78,8.5,11.42,14.08,19.510000000000002,28.71,0.44,0.56000000000000005,0.42,0.94]
[12,15,"     O1","  MEAN",2.92,2.85,1.63,2.38,1.1200000000000001,1.1299999999999999,2.82,1.52,1.75,1.2,2.5499999999999998,1.45]
[12,15,"     O1"," MEANF",12.19,13.36,7.39,7.97,3.43,3.46,16.170000000000002,0.05,1.81,1.68,3.9,2.16]
[12,15,"     O1"," STDDEV",1.49,1.83,0.84,1.35,0.71,0.71,1.33,1.08,2.1800000000000002,1.36,2.57,1.18]
[12,15,"     O1"," MODFRQ",1.41,4.57,10.87,8.5299999999999994,11.46,13.67,20.07,7.6,0.42,0.54,0.4,0.95]
[13,15,"     O1","  MEAN",4.29,4.66,4.79,11.02,2.76,3.25,5.73,1.37,0.97,0.42,1.69,1.73]
[13,15,"     O1"," MEANF",4.54,11.13,6.8,19.72,2.4900000000000002,4.13,12.67,0.27,1.64,0.56000000000000005,4.46,2.73]
[13,15,"     O1"," STDDEV",2.38,2.44,2.75,7.49,1.44,1.49,2.8,0.53,0.89,0.33,1.69,1.91]
[13,15,"     O1"," MODFRQ",1.39,4.9000000000000004,10.35,8.65,11.33,13.95,18.91,22.81,0.47,0.56999999999999995,0.43,0.91]
[14,15,"     O1","  MEAN",2.58,2.48,2.2999999999999998,1.65,1.42,1.22,2.93,1.26,1.08,1.5,1.75,1.62]
[14,15,"     O1"," MEANF",12.14,12.86,7.45,7.54,3.25,4.41,12.89,0.16,1.73,1.71,3.96,2.2999999999999998]
[14,15,"     O1"," STDDEV",1.86,1.43,1.22,1.0900000000000001,0.74,0.87,1.75,0.59,1.17,1.31,1.94,1.66]
[14,15,"     O1"," MODFRQ",1.39,4.8,10.7,8.4600000000000009,11.41,14.01,19.32,13.2,0.45,0.56999999999999995,0.42,0.94]
[15,15,"     F3","  MEAN",3.69,4.0199999999999996,3.31,4.71,1.95,2.13,3.85,1.35,1.21,0.85,2.06,1.7]
[15,15,"     F3"," MEANF",7.37,16.149999999999999,6.95,11.03,3.11,5.23,13.41,1,2.3199999999999998,1.46,5.19,2.23]
[15,15,"     F3"," STDDEV",2.04,2.2400000000000002,1.29,2.86,0.95,1.26,2.88,1.0900000000000001,1.73,0.78,2.36,1.37]
[15,15,"     F3"," MODFRQ",1.32,4.96,10.62,8.56,11.41,14.07,18.45,14.3,0.47,0.57999999999999996,0.43,0.93]
[16,15,"     F3","  MEAN",4.4000000000000004,5.55,2.99,5.43,1.56,3.12,5.61,2.1,1.85,1.02,3.56,1.92]
[16,15,"     F3"," MEANF",7.98,15.45,5.37,11.52,1.78,4.22,14.59,1.63,2.88,1.34,8.68,3.02]
[16,15,"     F3"," STDDEV",4.66,2.12,1.38,2.75,1.1299999999999999,1.56,3.62,4.43,1.54,0.77,1.88,1.22]
[16,15,"     F3"," MODFRQ",1.36,4.96,10.49,8.5500000000000007,11.31,13.97,19.05,19.850000000000001,0.47,0.57999999999999996,0.44,0.93]
[17,15,"     F3","  MEAN",3.24,4.6399999999999997,2.59,5.01,1.74,2.09,3.64,0.95,1.79,0.93,2.67,1.49]
[17,15,"     F3"," MEANF",6.95,16.87,7.19,11.97,2.63,5.53,13.41,0.15,2.35,1.41,6.42,2.74]
[17,15,"     F3"," STDDEV",1.51,2.94,1.26,2.69,0.99,1.27,1.65,0.43,2.34,1.0900000000000001,2.96,1.27]
[17,15,"     F3"," MODFRQ",1.39,5.04,10.57,8.52,11.33,14.07,18.47,13.49,0.48,0.59,0.44,0.93]
[18,15,"     F4","  MEAN",5.48,6.08,3.7,5.43,2.84,3.28,3.42,0.71,1.64,1.1200000000000001,2.14,1.3]
[18,15,"     F4"," MEANF",8.73,14.71,6.93,9.3800000000000008,2.87,5.27,10.07,0,2.12,1.57,5.13,2.42]
[18,15,"     F4"," STDDEV",3.35,4.3,2.4,2.7,1.86,1.43,2.2400000000000002,0.34,1.79,1.59,2.31,1.3]
[18,15,"     F4"," MODFRQ",1.29,4.7699999999999996,10.65,8.5500000000000007,11.37,13.95,18.5,7.47,0.45,0.56000000000000005,0.42,0.94]
[19,15,"     F4","  MEAN",5.57,5.79,3.46,5.23,1.85,2.17,4.47,1.1100000000000001,1.67,1.1100000000000001,3.14,1.87]
[19,15,"     F4"," MEANF",10.3,16.420000000000002,6.03,9.65,2.54,4.53,12.87,0,2.72,1.7,6.46,2.37]
[19,15,"     F4"," STDDEV",1.84,2.99,1.73,2.4500000000000002,1.7,0.99,2.46,0.51,1.73,1.22,1.76,1.02]
[19,15,"     F4"," MODFRQ",1.37,4.7699999999999996,10.64,8.52,11.37,14.13,18.45,3.73,0.45,0.56000000000000005,0.42,0.94]
[20,15,"     F4","  MEAN",8.8000000000000007,6.78,3.71,3.39,2.6,2.5499999999999998,5.66,3.08,1.83,2,2.61,1.43]
[20,15,"     F4"," MEANF",12.3,12.91,5.31,5.54,2.33,3.04,15.31,4.49,2.4300000000000002,2.33,5.53,2.2799999999999998]
[20,15,"     F4"," STDDEV",4.83,3.8,2,1.91,1.1499999999999999,1.48,5.97,3.85,1.9,1.99,3.29,1.73]
[20,15,"     F4"," MODFRQ",1.33,4.59,10.73,8.56,11.43,13.91,19.55,28.93,0.43,0.54,0.4,0.94]
[21,6,"     Fz","  MEAN",6.57,7.52,3.87,3.48,2.0299999999999998,2.92,5.27,1.22,1.94,2.16,3.7,1.9]
[21,6,"     Fz"," MEANF",6.22,11.47,3.77,7.55,1.32,2.73,10.4,0.23,3.04,1.52,8.7100000000000009,2.86]
[21,6,"     Fz"," STDDEV",3.21,3.61,2.64,2.74,0.76,1.36,3,0.61,1.37,1.32,4.7699999999999996,3.48]
[21,6,"     Fz"," MODFRQ",1.08,4.5999999999999996,10.43,8.6,11.33,14.03,19.05,5.05,0.44,0.53,0.41,0.92]
[22,6,"     Fz","  MEAN",8.2799999999999994,5.07,3.95,6.52,2.67,3.03,7.1,0.82,1.28,0.78,1.9,1.48]
[22,6,"     Fz"," MEANF",9.15,16.38,6.13,9.15,2.38,4.0199999999999996,12.73,1.38,2.67,1.79,6.87,2.57]
[22,6,"     Fz"," STDDEV",4.88,2.38,1.68,4.72,1.18,1.44,1.91,0.49,1.42,0.5,2.02,1.42]
[22,6,"     Fz"," MODFRQ",1.3,4.75,10.63,8.57,11.37,14.12,18.62,29.7,0.45,0.55000000000000004,0.42,0.93]
[23,6,"     Fz","  MEAN",6.52,7.55,2.78,7.03,1.85,1.97,4.8499999999999996,1.2,2.71,1.07,4.08,1.5]
[23,6,"     Fz"," MEANF",9.18,19.23,5.32,10.8,2.35,4.93,13.82,0.15,3.62,1.78,8.18,2.2599999999999998]
[23,6,"     Fz"," STDDEV",3.17,2.99,2.09,1.92,1.03,1.1200000000000001,2.2400000000000002,0.51,1.43,1.55,2.89,2.02]
[23,6,"     Fz"," MODFRQ",1.4,5,10.62,8.52,11.38,14.05,18.48,9.6,0.47,0.59,0.44,0.93]
[24,6,"     Fz","  MEAN",5.63,3.82,4.43,7.05,2.63,3.02,3.73,1.1200000000000001,0.86,0.54,1.45,1.68]
[24,6,"     Fz"," MEANF",8.3699999999999992,15.27,7.67,12.72,3.47,6.72,12.23,0,1.99,1.2,4.4000000000000004,2.21]
[24,6,"     Fz"," STDDEV",1.76,2.2799999999999998,3.63,3.28,1.47,1.78,2.56,0.82,0.63,0.7,1.56,2.4700000000000002]
[24,6,"     Fz"," MODFRQ",1.42,5.18,10.6,8.57,11.4,13.92,18.579999999999998,0,0.49,0.6,0.45,0.93]
[25,6,"     Fz","  MEAN",2.52,4.78,2.77,3.3,1.68,2.2200000000000002,5.23,0.9,1.73,1.45,2.84,1.64]
[25,6,"     Fz"," MEANF",7.68,16.920000000000002,5.53,11.58,2.17,6.35,13.52,0,3.06,1.46,7.81,2.5499999999999998]
[25,6,"     Fz"," STDDEV",2.21,3.1,1.98,2.04,0.7,1.5,2.79,0.56999999999999995,1.57,1.52,4.45,2.83]
[25,6,"     Fz"," MODFRQ",1.35,4.78,10.45,8.6199999999999992,11.3,14.17,18.5,0,0.46,0.55000000000000004,0.42,0.92]
[26,6,"     Fz","  MEAN",4.7300000000000004,6.12,4.62,6.03,2.63,2.25,4.05,1.18,1.32,1.01,2.3199999999999998,1.75]
[26,6,"     Fz"," MEANF",8.1,15.27,7.8,13.1,2.58,4.07,11.1,0,1.96,1.17,5.91,3.02]
[26,6,"     Fz"," STDDEV",3.67,2.4700000000000002,1.44,2.5099999999999998,0.77,0.88,2,0.33,1.71,0.99,3.19,1.87]
[26,6,"     Fz"," MODFRQ",1.4,4.92,10.5,8.5500000000000007,11.28,14.05,18.62,0,0.47,0.57999999999999996,0.44,0.93]
[27,6,"     Fz","  MEAN",3.42,2.35,3.08,5.3,1.6,3.52,2.93,0.83,0.76,0.44,1.47,1.93]
[27,6,"     Fz"," MEANF",6.67,15.35,6.85,11.17,2.87,6.07,12.35,0,2.2400000000000002,1.37,5.35,2.39]
[27,6,"     Fz"," STDDEV",2.88,1.55,1.53,2.76,1.1299999999999999,1.89,1.53,0.35,1.01,0.56000000000000005,1.37,1.36]
[27,6,"     Fz"," MODFRQ",1.32,4.87,10.5,8.5299999999999994,11.37,13.95,18.25,14,0.46,0.56999999999999995,0.43,0.92]
[28,6,"     Fz","  MEAN",4.07,4.97,4.4800000000000004,6.82,2.52,1.72,4.8,0.65,1.1100000000000001,0.73,1.97,1.78]
[28,6,"     Fz"," MEANF",6.93,17.63,7.3,11.97,2.42,3.55,15.48,0,2.42,1.47,7.3,3.02]
[28,6,"     Fz"," STDDEV",2,2.56,2.4500000000000002,3.19,0.97,0.6,1.63,0.37,1.05,0.8,2.64,2.52]
[28,6,"     Fz"," MODFRQ",1.4,5.22,10.57,8.5,11.28,13.97,18.48,0,0.49,0.61,0.46,0.94]
[29,6,"     Fz","  MEAN",5.9,3.4,3.13,4.7,1.63,2.52,4.47,1.07,1.0900000000000001,0.72,2.08,1.92]
[29,6,"     Fz"," MEANF",9.52,14.5,7.27,13.02,2.68,4.3499999999999996,12.32,0,2,1.1100000000000001,5.4,2.71]
[29,6,"     Fz"," STDDEV",2.5299999999999998,1.51,1.05,2.86,1.1299999999999999,1.43,1.51,0.36,1.45,0.53,1.33,0.92]
[29,6,"     Fz"," MODFRQ",1.4,4.82,10.53,8.6,11.35,14,18.8,0,0.46,0.56000000000000005,0.42,0.93]
[30,7,"     Fz","  MEAN",6.2,5.49,3.81,5.79,2.71,3.21,3.5,1.1599999999999999,1.44,0.95,2.02,1.41]
[30,7,"     Fz"," MEANF",8.39,14.44,6.37,8.49,2.73,4.1900000000000004,16.09,1.81,2.27,1.7,5.29,2.33]
[30,7,"     Fz"," STDDEV",6.23,2.14,2.1,1.58,1.55,1.23,1.49,0.51,1.02,1.35,1.38,1.35]
[30,7,"     Fz"," MODFRQ",1.29,5.03,10.69,8.4600000000000009,11.41,13.87,18.73,4.59,0.47,0.59,0.44,0.94]

{"sheet":"calc","index":2,"n_rows":93,"n_cols":17,"rows_kept":93,"cut":false,"hidden":false,"merged":[]}
["CZ","Values","Ratio",null,null,"x  means to Print Middle Text Always","Medically Significant     IF","Medically Significant Number","Text Ctl target Lo","Text Ctl Target Hi",null,"Conditional Text if < target","Text Always Displayed if column F= \"x\" ","Conditional Text if > target","Signif Flag","Conditional Treatment Plan Text. When positive response to probing is confirmed, this text is included in the Treatment Report if the Flag = 1. Always edit treatment plan to fit client situation."]
["EO Alpha",{"$f":"MEDIAN(input!G4,input!G8)","v":2.9299999999999997},null,null,null,"x",null,null,null,null,1,null,null,null,{"$f":"IF(G2=\"\",0,IF(AND(G2=\"Lower\",B2+C2<H2),1,IF(AND(G2=\"Greater\",B2+C2>=H2),1,0)))","v":0},null,""]
["EC Alpha",{"$f":"MEDIAN(input!G12)","v":4.1500000000000004},null,null,null,"x",null,null,null,null,1,null,null,null,{"$f":"IF(G3=\"\",0,IF(AND(G3=\"Lower\",B3+C3<H3),1,IF(AND(G3=\"Greater\",B3+C3>=H3),1,0)))","v":0},null,""]
["Percent change EO to EC Alpha > 30%",null,{"$f":"(B3-B2)/MIN(B2,B3)","v":0.41638225255972722},null,null,"x","Lower",0.3,0.3,0.3,1,"If < 30% or negative, probe for visual processing (memory) problem; poor retention of information and/or poor short term memory; also refer to O1 Alpha EO to EC description.","If < 30% or negative, probe for visual processing (memory) problem; poor retention of information and/or poor short term memory; also refer to O1 Alpha EO to EC description.","If < 30% or negative, probe for visual processing (memory) problem; poor retention of information and/or poor short term memory; also refer to O1 Alpha EO to EC description.",0,{"$f":"\"To improve visual processing (memory) problem; poor retention of information and/or poor short term memory, increase the difference between  Eyes Open to Eyes Closed Alpha at CZ from \" & TEXT(C4,\"00.00%\") & \"  to more than 30%.  See O1 Alpha Eyes Open to Eyes Closed.\"","v":"To improve visual processing (memory) problem; poor retention of information and/or poor short term memory, increase the difference between  Eyes Open to Eyes Closed Alpha at CZ from 41.64%  to more than 30%.  See O1 Alpha Eyes Open to Eyes Closed."},""]
["EO Alpha Recovery",{"$f":"MEDIAN(input!G16)","v":2.87},null,null,null,"x",null,null,null,null,1,null,null,"",0,null,""]
["% difference EO Alpha \nfrom initial EO after EC < 25% ",null,{"$f":"(B5-B2)/MIN(B2,B5)","v":-2.0905923344947598E-2},null,null,"x","Greater",0.25,0.25,0.25,1,"If > 25%, probe for foggy thinking.","If > 25%, probe for foggy thinking.","If > 25%, probe for foggy thinking.",0,{"$f":"\"Clarify foggy thinking by increasing the percent difference of Eyes Open Alpha from initial Eyes Open after Eyes Closed at CZ from \" & TEXT(C6,\"00.00%\") & \" to under 25%.\"","v":"Clarify foggy thinking by increasing the percent difference of Eyes Open Alpha from initial Eyes Open after Eyes Closed at CZ from -02.09% to under 25%."},""]
["Theta Amplitude EO",{"$f":"MEDIAN(input!F4,input!F8)","v":4.66},null,null,null,"x",null,null,null,null,1,null,null,null,0,null,""]
["Beta Amplitude EO",{"$f":"MEDIAN(input!K4,input!K8)","v":3.6749999999999998},null,null,null,"x",null,null,null,null,1,null,null,null,0,null,""]
["EO Theta/Beta < 2.2",{"$f":"IF(ISERROR(B7/B8),\"N/A\",B7/B8)","v":1.2680272108843538},null,null,null,"x","Greater",2.2000000000000002,2.2000000000000002,2.2000000000000002,1,"If > 2.2, probe for CADD also refer to UT T/B description. ","If > 2.2, probe for CADD also refer to UT T/B description. ","If > 2.2, probe for CADD also refer to UT T/B description. ",0,{"$f":"\"To reduce inattention, decrease Eyes Open Theta/Beta at CZ from \" &  TEXT(B9,\"00.00\") & \" to > 2.2 .\"","v":"To reduce inattention, decrease Eyes Open Theta/Beta at CZ from 01.27 to > 2.2 ."},""]
["Theta Amplitude Under Task UT",{"$f":"MEDIAN(input!F20,input!F24,input!F28)","v":5.67},null,null,null,"x",null,null,null,null,1,null,null,null,0,null,""]
["Beta Amplitude UT",{"$f":"MEDIAN(input!K20,input!K24,input!K28)","v":3.13},null,null,null,"x",null,null,null,null,1,null,null,null,0,null,""]
["Theta/Beta UT < 2.2",{"$f":"IF(ISERROR(B10/B11),\"N/A\",B10/B11)","v":1.8115015974440896},null,null,null,"x","Greater",2.2000000000000002,2.2000000000000002,2.2000000000000002,1,"If >2.2, probe for CADD (ratio should drop UT); If >3.0, probe for AD(H)D.  If > 2.2 and if CZ EO T/B < 2.2, probe for ADD and/or problems with poor reading comprehension/retention.","If >2.2, probe for CADD (ratio should drop UT); If >3.0, probe for AD(H)D.  If > 2.2 and if CZ EO T/B < 2.2, probe for ADD and/or problems with poor reading comprehension/retention.","If >2.2, probe for CADD (ratio should drop UT); If >3.0, probe for AD(H)D.  If > 2.2 and if CZ EO T/B < 2.2, probe for ADD and/or problems with poor reading comprehension/retention.",0,{"$f":"\"Train Eyes Open Theta/Beta at CZ under task from  \" & TEXT(B12,\"00.00\") & \" to under 2.2 to improve poor reading comprehension/retention.  Train down Eyes Open Theta/Beta from \" & TEXT(B12,\"00.00\") & \" to under 3 to improve AD(H)D  issues.  May need braindriving.\"","v":"Train Eyes Open Theta/Beta at CZ under task from  01.81 to under 2.2 to improve poor reading comprehension/retention.  Train down Eyes Open Theta/Beta from 01.81 to under 3 to improve AD(H)D  issues.  May need braindriving."},""]
["Percent change T/B EO to T/B EO UT < 15%",null,{"$f":"(B12-B9)/MIN(B9,B12)","v":0.42859836279120794},null,null,"x","Greater",0.15,0.15,0.15,1,"If positive and > 15%, probe for CADD.","If positive and > 15%, probe for CADD.","If positive and > 15%, probe for CADD.",1,{"$f":"\"Train up the percentage change in Theta/Beta ratio Eyes Open at CZ from \"  & TEXT(C13,\"00.00\") & \" to within 15% to improve attention-related issues. May need braindriving.\"","v":"Train up the percentage change in Theta/Beta ratio Eyes Open at CZ from 00.43 to within 15% to improve attention-related issues. May need braindriving."},""]
["% Beta Increase UT < 15%",null,{"$f":"(B11-B8)/MIN(B11,B8)","v":-0.17412140575079871},null,null,"x","Greater",0.15,0.15,0.15,1,"If > 15%, probe for getting overly tired when reading or problem solving.","If > 15%, probe for getting overly tired when reading or problem solving.","If > 15%, probe for getting overly tired when reading or problem solving.",0,{"$f":"\"Train down the Theta/Beta ratio at CZ from \" & TEXT(C14,\"00.00\") &\" to below 2.2 to help resolve getting overly tired when reading or problem solving.\"","v":"Train down the Theta/Beta ratio at CZ from -00.17 to below 2.2 to help resolve getting overly tired when reading or problem solving."},""]
["Total Amplitude < 60",{"$f":"MEDIAN((input!F4+input!G4+input!K4),(input!F8+input!G8+input!K8),(input!F12+input!G12+input!K12),(input!F16+input!G16+input!K16),(input!F20+input!G20+input!K20),(input!F24+input!G24+input!K24),(input!F28+input!G28+input!K28),(input!F32+input!G32+input!K32),(input!F36+input!G36+input!K36),(input!F40+input!G40+input!K40) )","v":11.760000000000002},null,null,null,"x","Greater",60,60,60,1,"If > 60 probe for development delay, autistic spectrum behavior, marked cognitive deficits.","If > 60 probe for development delay, autistic spectrum behavior, marked cognitive deficits.","If > 60 probe for development delay, autistic spectrum behavior, marked cognitive deficits.",0,{"$f":" \"Promote development, reduce autistic spectrum behavior, and improve cognitive deficits by lowering total amplitude at CZ from \" & TEXT(B15,\"00.00\") & \" to under 60.\"","v":"Promote development, reduce autistic spectrum behavior, and improve cognitive deficits by lowering total amplitude at CZ from 11.76 to under 60."},""]
["Theta Amplitude preceding Omni",{"$f":"MEDIAN(input!F32)","v":5.19},null,null,null,"x",null,null,null,null,1,null,null,null,0,null,""]
["Theta Amplitude with Omni",{"$f":"MEDIAN(input!F36,input!F40)","v":4.4849999999999994},null,null,null,"x",null,null,null,null,1,null,null,null,0,null,""]
["Percent change in Theta with Omni   > -5%",null,{"$f":"(B17-B16)/(MIN(B16,B17))","v":-0.15719063545150525},null,null,"x","Lower",-0.05,-0.05,-0.05,1,"Positive % indicates Theta increase with Omni sound.  If % is negative and > 5, prescribe for home use (positive % indicates Theta increase).","Positive % indicates Theta increase with Omni sound.  If % is negative and > 5, prescribe for home use (positive % indicates Theta increase).","Positive % indicates Theta increase with Omni sound.  If % is negative and > 5, prescribe for home use (positive % indicates Theta increase).",1,"Get the Omni protocol from www.SoundHealthProducts.com to enhance concentration while working quietly. ",""]
["Alpha Peak Frequency EC >9.5",{"$f":"input!G15","v":10.45},null,null,null,"x","Lower",9.5,9.5,9.5,1,"If < 9.5 probe for mental sluggishness.","If < 9.5 probe for mental sluggishness.","If < 9.5 probe for mental sluggishness.",0,{"$f":"\"Train up Peak Alpha Frequency at CZ from \" & TEXT(B19,\"00.00\") & \" toward 10 or more to improve mental agility.\"","v":"Train up Peak Alpha Frequency at CZ from 10.45 toward 10 or more to improve mental agility."},""]
["Alpha Peak Frequency EO >9.5",{"$f":"MEDIAN(input!G7,input!G11,input!G19)","v":10.61},null,null,null,"x","Lower",9.5,9.5,9.5,1,"If < 9.5 probe for mental sluggishness.","If < 9.5 probe for mental sluggishness.","If < 9.5 probe for mental sluggishness.",0,{"$f":"\"Train up Peak Alpha Frequency at CZ from \" &  TEXT(B20,\"00.00\")  & \" toward 10 or more to improve mental agility. \"","v":"Train up Peak Alpha Frequency at CZ from 10.61 toward 10 or more to improve mental agility. "},""]
["Theta/SMR EC < 3",{"$f":"input!F12/input!J12","v":1.8700361010830324},null,null,null,"x","Greater",3,3,3,1,"If > 3, probe for inability to sit still or quiet the body; sleep disturbance as in trouble falling asleep. If > 3, probe for problems related to muscle activity such as headaches, chronic pain, body tremors, dystonia & seizure disorders that have a motor component.","If > 3, probe for inability to sit still or quiet the body; sleep disturbance as in trouble falling asleep. If > 3, probe for problems related to muscle activity such as headaches, chronic pain, body tremors, dystonia & seizure disorders that have a motor component.","If > 3, probe for inability to sit still or quiet the body; sleep disturbance as in trouble falling asleep. If > 3, probe for problems related to muscle activity such as headaches, chronic pain, body tremors, dystonia & seizure disorders that have a motor component.",0,"Train down Theta/SMR Eyes Closed ratio at CZ to enhance the ability to sit still or quiet the body.   Train down Theta/SMR Eyes Closed ratio at CZ to quiet sleep disturbance as in trouble falling asleep.  Train down Theta/SMR Eyes Closed ratio at CZ to reduce problems related to muscle activity such as headaches, chronic pain, body tremors, dystonia & seizure disorders that have a motor component.",""]
["Gray cells = formulas. Dark gray = local calculations",null,null,null,null,null,null,null,null,null,1]
["O1","Values","Ratio",null,null,null,null,null,null,null,1]
["Alpha EO",{"$f":"MEDIAN(input!G44,input!G48)","v":1.79},null,null,null,"x",null,null,null,null,1,null,null,null,{"$f":"IF(G24=\"\",0,IF(AND(G24=\"Lower\",B24+C24<H24),1,IF(AND(G24=\"Greater\",B24+C24>=H24),1,0)))","v":0}]
["Alpha EC",{"$f":"MEDIAN(input!G52)","v":4.79},null,null,null,"x",null,null,null,null,1,null,null,null,0]
["% Change in Alpha EO to EC > 50%",null,{"$f":"(B25-B24)/MIN(B24,B25)","v":1.6759776536312849},null,null,"x",null,null,null,null,1,"If EC increase is > 50% or negative, and also seen at Cz, probe for traumatic stress. If 150% probe for artistic interest or skills (visual arts, dance poetry carpentry etc.","If EC increase is < 50% or negative, and also seen at Cz, probe for traumatic stress. If 150% + probe for artistic interest or skills (visual arts, dance, poetry, carpentry, etc.)","If EC increase is > 50% or negative, and also seen at Cz, probe for traumatic stress. If 150% probe for artistic interest or skills (visual arts, dance poetry carpentry etc.",{"$f":"IF(AND(C26>=0.5,C26<1.5),0,1)","v":1},{"$f":"\"If over 150% encourage artistic talents.  Release traumatic stress by increasing the percentage change in Alpha Eyes Open to Eyes Closed at O1 from \" & TEXT(C26,\"00.00%\") & \" to greater than 50%.\"","v":"If over 150% encourage artistic talents.  Release traumatic stress by increasing the percentage change in Alpha Eyes Open to Eyes Closed at O1 from 167.60% to greater than 50%."}]
["EO Alpha Recovery ",{"$f":"input!G56","v":2.2999999999999998},null,null,null,"x",null,null,null,null,1,null,null,null,0]
["% change EO Alpha \nto EO Alpha after EC < 25%",null,{"$f":"(B27-B24)/MIN(B24,B27)","v":0.2849162011173183},null,null,"x","Greater",0.25,0.25,0.25,1,"If >25%, probe for foggy thinking.","If >25%, probe for foggy thinking.","If >25%, probe for foggy thinking.",1,{"$f":"\"Improve thinking precision by boosting the percent change EO Alpha to EO Alpha after EC from \" & TEXT(C28,\"00.00%\")  & \" to < 25% at O1.\"","v":"Improve thinking precision by boosting the percent change EO Alpha to EO Alpha after EC from 28.49% to < 25% at O1."}]
["Theta Amplitude EO",{"$f":"MEDIAN(input!F44,input!F48)","v":2.52},null,null,null,"x",null,null,null,null,1,null,null,null,0]
["Beta Amplitude EO",{"$f":"MEDIAN(input!K44,input!K48)","v":2.73},null,null,null,"x",null,null,null,null,1,null,null,null,0]
["Theta/Beta EO 1.8 - 2.2",{"$f":"IF(ISERROR(B29/B30),\"N/A\",B29/B30)","v":0.92307692307692313},null,null,null,"x",null,null,null,null,1,"If < 1.8, probe for poor stress tolerance, racing thoughts, anxiety, inefficient self-quieting.  If << 1.8 probe for predisposition to self-medicating behaviors, GAD & stress precipitated depression. If > 3.0 probe for cognitive deficiencies or Asperger's patterns; also see F4/F3 Beta for symptom.  Also applies to T/B EC.","If < 1.8, probe for poor stress tolerance, racing thoughts, anxiety, inefficient self-quieting.  If << 1.8 probe for predisposition to self-medicating behaviors, GAD & stress precipitated depression. If > 3.0 probe for cognitive deficiencies or Asperger's patterns; also see F4/F3 Beta for symptom.  Also applies to T/B EC.","If < 1.8, probe for poor stress tolerance, racing thoughts, anxiety, inefficient self-quieting.  If << 1.8 probe for predisposition to self-medicating behaviors, GAD & stress precipitated depression. If > 3.0 probe for cognitive deficiencies or Asperger's patterns; also see F4/F3 Beta for symptom.  Also applies to T/B EC.",{"$f":"IF(AND(B31>=1.8,B31<=2.2),0,1)","v":1},{"$f":"\"Increase O1 Theta/Beta Eyes Open from \" & TEXT(B31,\"00.00\") & \" to between 1.8 - 2.2 to address poor stress tolerance, racing thoughts, anxiety, inefficient self-quieting and a predisposition to self-medicating behaviors, anxiety and stress precipitated depression.\" & \" Address cognitive deficiencies or Asperger's patterns by reducing O1 Theta/Beta Eyes Open to between 1.8 and 2.2.   Examine F4/F3 Beta for training opportunities. \"","v":"Increase O1 Theta/Beta Eyes Open from 00.92 to between 1.8 - 2.2 to address poor stress tolerance, racing thoughts, anxiety, inefficient self-quieting and a predisposition to self-medicating behaviors, anxiety and stress precipitated depression. Address cognitive deficiencies or Asperger's patterns by reducing O1 Theta/Beta Eyes Open to between 1.8 and 2.2.   Examine F4/F3 Beta for training opportunities. "}]
["Theta Amplitude EC",{"$f":"input!F52","v":4.66},null,null,null,"x",null,null,null,null,1,null,null,null,0]
["Beta Amplitude EC",{"$f":"input!K52","v":5.73},null,null,null,"x",null,null,null,null,1,null,null,null,0]
["Theta/Beta EC 1.8 - 2.2",{"$f":"IF(ISERROR(B32/B33),\"N/A\",B32/B33)","v":0.81326352530541013},null,null,null,"x",null,null,null,null,1,"If both EC and EO about = or < 1.5, probe for sleep disturbance.  Also see T/B EO for description of probes.","If both EC and EO about = or < 1.5, probe for sleep disturbance.  Also see T/B EO for description of probes.","If both EC and EO about = or < 1.5, probe for sleep disturbance.  Also see T/B EO for description of probes.",{"$f":"IF(AND(B34>=1.8,B34<=2.2),0,1)","v":1},{"$f":"\"Calm sleep disturbance by balancing Eyes Closed and Eyes Open Theta/Beta ratio at O1 from \" & TEXT(B34,\"00.00\") & \" up to 1.5.  Consider Theta/Beta EO at O1.\"","v":"Calm sleep disturbance by balancing Eyes Closed and Eyes Open Theta/Beta ratio at O1 from 00.81 up to 1.5.  Consider Theta/Beta EO at O1."}]
["% change EO to EC T/B ratio  >  25%",null,{"$f":"(B34-B31)/MIN(B31,B34)","v":-0.13502806206668874},null,null,"x","Lower",-0.25,-0.25,0,1,"If % is negative and > 25, question sleep onset difficulties. If positive %, indicates an increase from EO to EC.","If % is negative and > 25, question sleep onset difficulties. Positive % means an increase from EO to EC.","If % is negative and > 25, question sleep onset difficulties. If positive %, indicates an increase from EO to EC.",0,{"$f":"\"Reduce time to sleep onset by increasing percentage change Eyes Open to Eyes Closed Theta/Beta ratio at O1 from \" & TEXT(C35,\"00.00%\") & \"  to .25%.\"","v":"Reduce time to sleep onset by increasing percentage change Eyes Open to Eyes Closed Theta/Beta ratio at O1 from -13.50%  to .25%."}]
["Alpha Peak Frequency EC > 9.5",{"$f":"input!G55","v":10.35},null,null,null,"x","Lower",9.5,9.5,null,1,"If < 9.5, probe for mental sluggishness.","If < 9.5, probe for mental sluggishness.","If < 9.5, probe for mental sluggishness.",0,{"$f":"\"Train up Peak Alpha Frequency Eyes Open at O1 from \" & TEXT(B36,\"00.00\") & \" toward 10 or above to improve mental agility.\"","v":"Train up Peak Alpha Frequency Eyes Open at O1 from 10.35 toward 10 or above to improve mental agility."}]
["Alpha Peak Frequency EO > 9.5",{"$f":"MEDIAN(input!G47,input!G51,input!G59)","v":10.78},null,null,null,"x","Lower",9.5,9.5,null,1,"If < 9.5, probe for mental sluggishness.","If < 9.5, probe for mental sluggishness.","If < 9.5, probe for mental sluggishness.",0,{"$f":"\"Train up Peak Alpha Frequency Eyes Closed at O1 from \" & TEXT(B37,\"00.00\") & \" toward 10 or above to improve mental agility.\"","v":"Train up Peak Alpha Frequency Eyes Closed at O1 from 10.78 toward 10 or above to improve mental agility."}]
[null,null,null,null,null,null,null,null,null,null,1]
["F3","F3 Values",null,null,null,null,null,null,null,null,1]
["Theta Amplitude EC",{"$f":"MEDIAN(input!F60,input!F64,input!F68)","v":4.6399999999999997},null,null,null,"x",null,null,null,null,1]
["Beta Amplitude EC",{"$f":"MEDIAN(input!K60,input!K64,input!K68)","v":3.85},null,null,null,"x",null,null,null,null,1]
["Theta /Beta EC < 2.2",{"$f":"IF(ISERROR(B40/B41),\"N/A\",B40/B41)","v":1.2051948051948052},null,null,null,"x",null,null,null,null,1]
[null,null,null,null,null,"x",null,null,null,null,1]
["Theta Amplitude EC",{"$f":"MEDIAN(input!F60,input!F64,input!F68)","v":4.6399999999999997},null,null,null,"x",null,null,null,null,1]
["Alpha Amplitude EC",{"$f":"MEDIAN(input!G60,input!G64,input!G68)","v":2.99},null,null,null,"x",null,null,null,null,1]
["Theta /Alpha EC  1.2 - 1.6",{"$f":"B44/B45","v":1.551839464882943},null,null,null,"x",null,null,null,null,1]
["Total Amplitude EC < 60",{"$f":"B40+B41+B45","v":11.48},null,null,null,"x",null,null,null,null,1]
[null,null,null,null,null,"x",null,null,null,null,1,null,null,"  "]
[null,null,null,null,null,"x",null,null,null,null,1]
[null,null,null,null,null,"x",null,null,null,null,1]
[null,null,null,null,null,null,null,null,null,null,1]
["F4","F4 Values","% Difference F3-F4",null,null,null,null,null,null,null,1]
["Theta Amplitude EC",{"$f":"MEDIAN(input!F72,input!F76,input!F80)","v":6.08},null,null,null,"x",null,null,null,null,1,null,null,null,{"$f":"IF(G53=\"\",0,IF(AND(G53=\"Lower\",B53+C53<H53),1,IF(AND(G53=\"Greater\",B53+C53>=H53),1,0)))","v":0}]
["Beta Amplitude EC",{"$f":"MEDIAN(input!K72,input!K76,input!K80)","v":4.47},null,null,null,"x",null,null,null,null,1,null,null,null,{"$f":"IF(G54=\"\",0,IF(AND(G54=\"Lower\",B54+C54<H54),1,IF(AND(G54=\"Greater\",B54+C54>=H54),1,0)))","v":0}]
["Theta /Beta EC < 2.2",{"$f":"IF(ISERROR(B53/B54),\"N/A\",B53/B54)","v":1.3601789709172261},null,null,null,"x","Greater",2.2000000000000002,2.2000000000000002,2.2000000000000002,1,"If F3 and F4 Theta/Beta EC < 2.2, probe for cognitive deficiencies associated with retrieval of information, impulse control, emotional volatility, etc.  Probe for depression in adults & impulse control in children.","If F3 or F4 Theta/Beta EC > 2.2, probe for cognitive deficiencies associated with retrieval of information, impulse control, emotional volatility, etc.  Probe for depression in adults & impulse control in children.","If F3 and F4 Theta/Beta EC < 2.2, probe for cognitive deficiencies associated with retrieval of information, impulse control, emotional volatility, etc.  Probe for depression in adults & impulse control in children.",0,{"$f":"\"Relieve cognitive deficiencies associated with retrieval  of information, impulse control, emotional volatility, etc. by lowering Theta/Beta ratio at either F3 or F4 or both from \" & TEXT(B55,\"00.00\") & \"  to < 2.2.\"","v":"Relieve cognitive deficiencies associated with retrieval  of information, impulse control, emotional volatility, etc. by lowering Theta/Beta ratio at either F3 or F4 or both from 01.36  to < 2.2."}]
["% Difference between\nF3 T/B & F4 T/B < 20%",null,{"$f":"(B55-B42)/MIN(B55,B42)","v":0.12859677543778458},null,null,"x","Lower",-0.2,null,null,1,"If % difference b/w F3 T/B & F4 T/B EC is negative and > 20% probe for emotional volatility, anger management problems, emotional impulse control.  In males, in particular, emotional restrictions (very narrow emotional window) that seems to be a response to or effort to control emotional volatility.","If % difference b/w F3 T/B & F4 T/B EC is negative and > 20% probe for emotional volatility, anger management problems, emotional impulse control.  In males, in particular, emotional restrictions (very narrow emotional window) that seems to be a response to or effort to control emotional volatility.","If % difference b/w F3 T/B & F4 T/B EC is negative and > 20% probe for emotional volatility, anger management problems, emotional impulse control.  In males, in particular, emotional restrictions (very narrow emotional window) that seems to be a response to or effort to control emotional volatility.",0,{"$f":"\"Decrease percentage difference between F3 Theta/Beta and F4 Theta/Beta Eyes Closed from \" & TEXT(C56,\"00.00%\") & \" to reduce emotional volatility, anger management problems, emotional impulse control.  Decrease percentage difference between F3 Theta/Beta and F4 Theta/Beta Eyes Closed from \" & TEXT(C56,\"00.00%\") & \" to expand emotional restrictions (very narrow emotional window) that seems to be a response to or effort to control emotional volatility.\"","v":"Decrease percentage difference between F3 Theta/Beta and F4 Theta/Beta Eyes Closed from 12.86% to reduce emotional volatility, anger management problems, emotional impulse control.  Decrease percentage difference between F3 Theta/Beta and F4 Theta/Beta Eyes Closed from 12.86% to expand emotional restrictions (very narrow emotional window) that seems to be a response to or effort to control emotional volatility."}]
["Theta Amplitude EC",{"$f":"B53","v":6.08},null,null,null,"x",null,null,null,null,1,null,null,null,0]
["Alpha Amplitude EC",{"$f":"MEDIAN(input!G72,input!G76,input!G80)","v":3.7},null,null,null,"x",null,null,null,null,1,null,null,null,0]
["Theta /Alpha EC  1.2 - 1.6",{"$f":"IF(ISERROR(B57/B58),\"N/A\",B57/B58)","v":1.6432432432432431},null,null,null,"x",null,null,null,null,1," If < 1.0, probe for frontal Alpha ADD - problems with organization, sequencing, sustained focus, planning, task completion, staying on task, talkativeness.  If << .8 probe for fibromyalgia, chronic fatigue and sleep disturbance."," If < 1.0, probe for frontal Alpha ADD - problems with organization, sequencing, sustained focus, planning, task completion, staying on task, talkativeness.  If << .8 probe for fibromyalgia, chronic fatigue and sleep disturbance."," If < 1.0, probe for frontal Alpha ADD - problems with organization, sequencing, sustained focus, planning, task completion, staying on task, talkativeness.  If << .8 probe for fibromyalgia, chronic fatigue and sleep disturbance.",{"$f":"IF(AND(B59>=1.2,B59<=1.6),0,1)","v":1},{"$f":"\"Train Alpha Eyes Closed at F4 from \" &  TEXT(B59,\"00.00\") & \" to between 1.2-1.6 to treat frontal Alpha ADD and improve organization, sequencing, sustained focus, planning, task completion, staying on task, and talkativeness.\" &  \" Train Alpha Eyes Closed F4 from \" & TEXT(B59,\"00.00\") & \" to between 1.2-1.6 to address fibromyalgia, chronic fatigue and sleep disturbance.\"","v":"Train Alpha Eyes Closed at F4 from 01.64 to between 1.2-1.6 to treat frontal Alpha ADD and improve organization, sequencing, sustained focus, planning, task completion, staying on task, and talkativeness. Train Alpha Eyes Closed F4 from 01.64 to between 1.2-1.6 to address fibromyalgia, chronic fatigue and sleep disturbance."}]
["Total Amplitude EC < 60",{"$f":"B53+B54+B58","v":14.25},null,null,null,"x",null,null,60,60,1,"If > 60, probe for development delays, autism spectrum disorder (especially if O1 Theta is high and the anterior cingulate gyrus is \"hot\"); memory / cognitive deficits in adults.","If > 60, probe for development delays, autism spectrum disorder (especially if O1 Theta is high and the anterior cingulate gyrus is \"hot\"); memory / cognitive deficits in adults.","If > 60, probe for development delays, autism spectrum disorder (especially if O1 Theta is high and the anterior cingulate gyrus is \"hot\"); memory / cognitive deficits in adults.",{"$f":"IF(OR(B60>60,B47>60),1,0)","v":0},{"$f":"\"Decrease total amplitude in frontal lobe from \" & TEXT(B60,\"00.00\") & \" to under 60 to improve development delays, autism spectrum disorder.  Where appropriate reduce Theta at O1 and calm the anterior cigulate gyrus.\" & \" Decrease total amplitude in frontal lobe from \" & TEXT(B60,\"00.00\") & \" to under 60 for issues of memory or cognitive deficits in adults.\"","v":"Decrease total amplitude in frontal lobe from 14.25 to under 60 to improve development delays, autism spectrum disorder.  Where appropriate reduce Theta at O1 and calm the anterior cigulate gyrus. Decrease total amplitude in frontal lobe from 14.25 to under 60 for issues of memory or cognitive deficits in adults."}]
["F4 / F3 Beta < ±15%",{"$f":"(B54-B41)/MIN(B54,B41)","v":0.16103896103896095},null,null,null,"x","Greater",0.15,0.15,0.15,1,"If F4 Beta 15% > F3 Beta, probe for predisposition to depressed mood states in adults and impulse control in children.  If F4 Beta 20% > F3 Beta and F4/F3 Theta > 20% and F4 T/A 20% < F3 T/A (particularly when O1 T/B < 1.5), probe for fibromyalgia/chronic fatigue.","If F4 Beta 15% > F3 Beta, probe for predisposition to depressed mood states in adults and impulse control in children.  If F4 Beta 20% > F3 Beta and F4/F3 Theta > 20% and F4 T/A 20% < F3 T/A (particularly when O1 T/B < 1.5), probe for fibromyalgia/chronic fatigue.","If F4 Beta 15% > F3 Beta, probe for predisposition to depressed mood states in adults and impulse control in children.  If F4 Beta 20% > F3 Beta and F4/F3 Theta > 20% and F4 T/A 20% < F3 T/A (particularly when O1 T/B < 1.5), probe for fibromyalgia/chronic fatigue.",{"$f":"IF(ABS(B61)>0.15,1,0)","v":1}]
["F4 / F3 Alpha < ±15%",{"$f":"(B58-B45)/MIN(B58,B45)","v":0.23745819397993309},null,null,null,"x","Greater",0.15,0.15,0.15,1,"If F3 Alpha > F4 Alpha, probe for depression in adults and impulse control in children.  If F4 Alpha > F3 Alpha, probe for oppositional, defiant and socially aggressive or socially indifferent behavior; general elevated Alpha associated with emotional disregulation.","If F3 Alpha > F4 Alpha (negative %), probe for depression in adults and impulse control in children.  If F4 Alpha > F3 Alpha, probe for oppositional, defiant and socially aggressive or socially indifferent behavior; general elevated Alpha associated with emotional disregulation.","If F3 Alpha > F4 Alpha, probe for depression in adults and impulse control in children.  If F4 Alpha > F3 Alpha, probe for oppositional, defiant and socially aggressive or socially indifferent behavior; general elevated Alpha associated with emotional disregulation.",{"$f":"IF(ABS(B62)>0.15,1,0)","v":1},{"$f":"\"Relieve depression by training down ratio of F3 Alpha/F4 Alpha from \" & TEXT(B62,\"00.00\") & \"  to 15% or less. Treat oppositional, defiant and socially aggressive or socially indifferent behavior by uptraining the ratio of F4 Alpha/F3 Alpha from \" & TEXT(B62,\"00.00\") & \".\"","v":"Relieve depression by training down ratio of F3 Alpha/F4 Alpha from 00.24  to 15% or less. Treat oppositional, defiant and socially aggressive or socially indifferent behavior by uptraining the ratio of F4 Alpha/F3 Alpha from 00.24."}]
["F4 / F3 Theta < ±15%",{"$f":"(B53-B40)/MIN(B40,B53)","v":0.31034482758620702},null,null,null,"x","Greater",0.15,0.15,0.15,1,"If F4 Theta 15% > F3 Theta, probe for emotional volatility or conversely restricted emotional range. If F3 Theta 15% > F4 Theta, probe for depression in adults & impulse control in children.","If F4 Theta 15% > F3 Theta, probe for emotional volatility or conversely restricted emotional range. If F3 Theta 15% > F4 Theta, probe for depression in adults & impulse control in children.","If F4 Theta 15% > F3 Theta, probe for emotional volatility or conversely restricted emotional range. If F3 Theta 15% > F4 Theta, probe for depression in adults & impulse control in children.",1,{"$f":"\"Treat emotional volatility or restricted emotional range by balancing F4 Theta from \" & TEXT(B63,\"00.00\") & \" to within 15% or less of F3 Theta.   Treat depression by raising F3 Theta / F4 Theta up from \" & TEXT(B63,\"00.00\") & \".\"","v":"Treat emotional volatility or restricted emotional range by balancing F4 Theta from 00.31 to within 15% or less of F3 Theta.   Treat depression by raising F3 Theta / F4 Theta up from 00.31."}]
[null,null,null,null,null,null,null,null,null,null,1]
["FZ","Values",null,null,null,null,null,null,null,null,1]
["Delta 2 Hz EC < 9.0 ",{"$f":"MEDIAN(input!E84,input!E88,input!E92,input!E96,input!E100,input!E104,input!E108,input!E112,input!E116,input!E120)","v":5.7650000000000006},null,null,null,"x","Greater",9,9,9,1,"If Delta (2 Hz) EC < 9.0 probe for cognitive deficits such as problems with concentration forgetfulness and comprehension, higher values can be associated with developmental delays and pain, will usually see remarkable patterns in F3 and F4 if Delta is high.","If Delta (2 Hz) EC > 9.0 probe for cognitive deficits such as problems with concentration forgetfulness and comprehension, higher values can be associated with developmental delays and pain, will usually see remarkable patterns in F3 and F4 if Delta is high.","If Delta (2 Hz) EC < 9.0 probe for cognitive deficits such as problems with concentration forgetfulness and comprehension, higher values can be associated with developmental delays and pain, will usually see remarkable patterns in F3 and F4 if Delta is high.",{"$f":"IF(G66=\"\",0,IF(AND(G66=\"Lower\",B66+C66<H66),1,IF(AND(G66=\"Greater\",B66+C66>=H66),1,0)))","v":0},{"$f":"\"Train down Delta at FZ from \" & TEXT(B66,\"00.00\") & \" to below 9 to relieve cognitive deficits such as problems with concentration forgetfulness and comprehension.  Train down Delta at FZ from \" & TEXT(B66,\"00.00\") & \" to below 9 to ameliorate problems developmental delays and pain. \"","v":"Train down Delta at FZ from 05.77 to below 9 to relieve cognitive deficits such as problems with concentration forgetfulness and comprehension.  Train down Delta at FZ from 05.77 to below 9 to ameliorate problems developmental delays and pain. "}]
["HiBeta Amplitude",{"$f":"MEDIAN(input!L84,input!L88,input!L92,input!L96,input!L100,input!L104,input!L108,input!L112,input!L116,input!L120)","v":1.0950000000000002},null,null,null,"x",null,null,null,null,1,null,null,null,{"$f":"IF(G67=\"\",0,IF(AND(G67=\"Lower\",B67+C67<H67),1,IF(AND(G67=\"Greater\",B67+C67>=H67),1,0)))","v":0}]
["Beta Amplitude",{"$f":"MEDIAN(input!K84,input!K88,input!K92,input!K96,input!K100,input!K104,input!K108,input!K112,input!K116,input!K120)","v":4.6349999999999998},null,null,null,"x",null,null,null,null,1,null,null,null,0]
["HiBeta/Beta .45 -.55",{"$f":"IF(ISERROR(B67/B68),\"N/A\",B67/B68)","v":0.23624595469255669},null,null,null,"x",null,null,null,null,1,"If HiBeta/Beta < .45, probe for excessive passiveness.  If > .55, probe for stubborn behavior, OC tendencies or OCD, perseveration in autistic spectrum behaviors.  Assume hot midline (anterior cingulate gyrus) in treatment of autistic spectrum behaviors.  If > .60 or < .40, probe for anxiety; If >.80, probe for O/C behaviors.   If <.35, problematic passivity; .45 = open-minded and conciliatory. Caution! If there is an extremely elevated Beta amplitude, minimal ratio may result that does not indicate passive behavior.","If HiBeta/Beta < .45, probe for excessive passiveness.  If > .55, probe for stubborn behavior, OC tendencies or OCD, perseveration in autistic spectrum behaviors.  Assume hot midline (anterior cingulate gyrus) in treatment of autistic spectrum behaviors.  If > .60 or < .40, probe for anxiety; If >.80, probe for O/C behaviors.   If <.35, problematic passivity; .45 = open-minded and conciliatory. Caution! If there is an extremely elevated Beta amplitude, minimal ratio may result that does not indicate passive behavior.","If HiBeta/Beta < .45, probe for excessive passiveness.  If > .55, probe for stubborn behavior, OC tendencies or OCD, perseveration in autistic spectrum behaviors.  Assume hot midline (anterior cingulate gyrus) in treatment of autistic spectrum behaviors.  If > .60 or < .40, probe for anxiety; If >.80, probe for O/C behaviors.   If <.35, problematic passivity; .45 = open-minded and conciliatory. Caution! If there is an extremely elevated Beta amplitude, minimal ratio may result that does not indicate passive behavior.",{"$f":"IF(AND(B69>=0.45,B69<=0.55),0,1)","v":1},{"$f":"\"Train HiBeta/Beta ratio at FZ from \" & TEXT(B69,\"00.00\") & \" to between .45 - .55 in order to relieve passivity.  Train HiBeta/Beta ratio at FZ from \" & TEXT(B69,\"00.00\") & \" to between .45 - .55 in order to relieve stubborn behavior, OC tendencies or OCD, perseveration in autistic spectrum behaviors. Treat anxiety  by bringing HiBeta/Beta ratio at FZ from \" & TEXT(B69,\"00.00\") & \" to between .45 - .55.  Treat O/C behaviors by bring HiBeta/Beta ratio at FZ from \" & TEXT(B69,\"00.00\") & \" down to between .45 - .55”  Treat problematic passivity by training HiBeta/Beta ratio at FZ from \" & TEXT(B69,\"00.00\") & \" up toward .45.\"","v":"Train HiBeta/Beta ratio at FZ from 00.24 to between .45 - .55 in order to relieve passivity.  Train HiBeta/Beta ratio at FZ from 00.24 to between .45 - .55 in order to relieve stubborn behavior, OC tendencies or OCD, perseveration in autistic spectrum behaviors. Treat anxiety  by bringing HiBeta/Beta ratio at FZ from 00.24 to between .45 - .55.  Treat O/C behaviors by bring HiBeta/Beta ratio at FZ from 00.24 down to between .45 - .55”  Treat problematic passivity by training HiBeta/Beta ratio at FZ from 00.24 up toward .45."}]
["Sum HiBeta + Beta < 15",{"$f":"B67+B68","v":5.73},null,null,null,"x","Greater",15,15,15,1,"If Sum HiBeta + Beta <15, probe for autistic spectrum behavior.   Implications of 2 above ratios apply only if sum of amplitudes of 28-40 hz & Beta < 15. If summated amplitudes > 15, but 28-40/Beta is within normative range, probe for fretting and assume hot midline in treatment of autistic spectrum behaviors; When < 15, clients reported less annoying thoughts: If > 16, \"hot\" midline.","If Sum HiBeta + Beta > 15, probe for autistic spectrum behavior.   Implications of the 2 HiBeta values apply only if sum of amplitudes of 28-40 hz & Beta < 15. If summated amplitudes > 15, but 28-40/Beta is within normative range, probe for fretting and assume hot midline in treatment of autistic spectrum behaviors.  When < 15, clients reported less annoying thoughts: If > 16, \"hot\" midline.","If Sum HiBeta + Beta <15, probe for autistic spectrum behavior.   Implications of 2 above ratios apply only if sum of amplitudes of 28-40 hz & Beta < 15. If summated amplitudes > 15, but 28-40/Beta is within normative range, probe for fretting and assume hot midline in treatment of autistic spectrum behaviors; When < 15, clients reported less annoying thoughts: If > 16, \"hot\" midline.",0,{"$f":"\"Train down Sum of HiBeta + Beta at FZ from \" & TEXT(B70,\"00.00\") &  \" to below 15 to treat perseverative behavior.   Train down Sum of HiBeta + Beta at FZ from \" & TEXT(B70,\"00.00\") &  \" to relieve fretting and annoying thoughts.  If  \" & TEXT(B70,\"00.00\") &  \"  is >16 train down hot midline anterior cigulate gyrus.\"","v":"Train down Sum of HiBeta + Beta at FZ from 05.73 to below 15 to treat perseverative behavior.   Train down Sum of HiBeta + Beta at FZ from 05.73 to relieve fretting and annoying thoughts.  If  05.73  is >16 train down hot midline anterior cigulate gyrus."}]
["LoAlpha Amplitude",{"$f":"MEDIAN(input!H84,input!H88,input!H92,input!H96,input!H100,input!H104,input!H108,input!H112,input!H116,input!H120)","v":5.91},null,null,null,"x",null,null,null,null,1,null,null,null,0]
["HiAlpha Amplitude",{"$f":"MEDIAN(input!I84,input!I88,input!I92,input!I96,input!I100,input!I104,input!I108,input!I112,input!I116,input!I120)","v":2.2749999999999999},null,null,null,"x",null,null,null,null,1,null,null,null,0]
["LoAlpha/HiAlpha < 1.5",{"$f":"IF(ISERROR(B71/B72),\"N/A\",B71/B72)","v":2.5978021978021979},null,null,null,"x",null,null,null,null,1,"If > 1.5, probe for cognitive inefficiency, age related deficits in memory and cognitive processing, and sleep    If LoAlpha/HiAlpha 1.0 - 1.5, probe for cognitive inefficiency, age related deficits in memory and cognitive processing disorders; If >1.5, probe for problems  with concentration and forgetfulness; If >>1.5, probe for developmental delay, marked cognitive deficits; the lower this ratio, the better, as it reflects more efficient brain functioning.","If > 1.5, probe for cognitive inefficiency, age related deficits in memory and cognitive processing, sleep disorders, cognitive processing disorders, problems  with concentration and forgetfulness.  M63If >> 1.5, probe for developmental delay, marked cognitive deficits; the lower this ratio, the better, as it reflects more efficient brain functioning.","If > 1.5, probe for cognitive inefficiency, age related deficits in memory and cognitive processing, and sleep    If LoAlpha/HiAlpha 1.0 - 1.5, probe for cognitive inefficiency, age related deficits in memory and cognitive processing disorders; If >1.5, probe for problems  with concentration and forgetfulness; If >>1.5, probe for developmental delay, marked cognitive deficits; the lower this ratio, the better, as it reflects more efficient brain functioning.",{"$f":"IF(B73<1.5,0,1)","v":1},{"$f":"\"Lower ratio of LoAlpha/HiAlpha at FZ from \" & TEXT(B73,\"00.00\") & \" to below 1.5 to treat cognitive inefficiency, age related deficits in memory and cognitive processing and sleep disorders.  Lower ratio of LoAlpha/HiAlpha at FZ from \" & TEXT(B73,\"00.00\") & \" to below 1.5 to address developmental delays.\"","v":"Lower ratio of LoAlpha/HiAlpha at FZ from 02.60 to below 1.5 to treat cognitive inefficiency, age related deficits in memory and cognitive processing and sleep disorders.  Lower ratio of LoAlpha/HiAlpha at FZ from 02.60 to below 1.5 to address developmental delays."}]
["Alpha Peak Frequency EC",{"$f":"MEDIAN(input!G87,input!G91,input!G95,input!G99,input!G103,input!G107,input!G111,input!G115,input!G119,input!G123)","v":10.55},null,null,null,"x",null,null,null,null,1,null,"(This statistic is currently being used for research purposes)",null,0]
[]
[null,"Greater"]
[null,"Lower"," "]
[]
["Gary Ames, www.AlertFocus.com, Producer and Project Director for bringing Paul Swingle's Clinical Q to the Brainmaster"]
[]
["EO = Eyes Open, EC = Eyes Closed"]
["< Less than.  > Greater than.  ± Either plus or minus."]
[]
["Brainwave frequencies:"]
["Delta 1.5-2.5 Hz"]
["Theta 3-7 Hz"]
["LoAlpha 8-9 Hz"]
["Alpha 8-12 Hz"]
["HiAlpha 11-12 Hz"]
["SMR 12-15 Hz"]
["Beta 16-25 Hz"]
["HiBetaGamma 28-40 Hz"]
["Total Amplitude = Theta + Alpha + Beta"]